Workbook

Sheet MAIN-GAUGE
A1: GOVERNANCE REGION KPI PERFORMANCE DASHBOARD
A5: TOTAL PROGRAM | I5: TOTAL PROGRAMME (BLACK IND) | M5: GAUTENG (RED IND) | Q5: KZN (BLUE IND) | U5: WESTERN CAPE (PURPLE IND)
I7: TOTAL TARGET | K7: ='2.REGIONS DASHBOARD'!C62 -> 15485 | M7: TOTAL TARGET | O7: ='2.REGIONS DASHBOARD'!K62 -> 7026 | Q7: TOTAL TARGET | S7: ='2.REGIONS DASHBOARD'!AA62 -> 5756 | U7: TOTAL TARGET | W7: ='2.REGIONS DASHBOARD'!AQ62 -> 2703
W8: ='[2]2.Q-PROGRESS DASHBOARD'!$D$62 -> 1863
I9: ANNUAL VARIANCE | K9: ='2.REGIONS DASHBOARD'!D62 -> 4585 | M9: ANNUAL VARIANCE | O9: ='2.REGIONS DASHBOARD'!L62 -> 149 | Q9: ANNUAL VARIANCE | S9: ='2.REGIONS DASHBOARD'!AB62 -> 2573 | U9: ANNUAL VARIANCE | W9: ='2.REGIONS DASHBOARD'!AR62 -> 1863
I11: YTD ACTUAL | K11: ='2.REGIONS DASHBOARD'!E62 -> 10376 | M11: YTD ACTUAL | O11: ='2.REGIONS DASHBOARD'!M62 -> 6877 | Q11: YTD ACTUAL | S11: ='2.REGIONS DASHBOARD'!AC62 -> 2659 | U11: YTD ACTUAL | W11: ='2.REGIONS DASHBOARD'!AS62 -> 840
I13: YTD BACKLOG | K13: ='2.REGIONS DASHBOARD'!F62 -> 12 | M13: YTD BACKLOG | O13: ='2.REGIONS DASHBOARD'!N62 -> -1996 | Q13: YTD BACKLOG | S13: ='2.REGIONS DASHBOARD'!AD62 -> 954 | U13: YTD BACKLOG | W13: ='2.REGIONS DASHBOARD'!AT62 -> 1054
I15: YTD PERFORMANCE | K15: ='2.REGIONS DASHBOARD'!I62 -> 0.9988448209 | M15: YTD PERFORMANCE | O15: ='2.REGIONS DASHBOARD'!Q62 -> 1.408932596 | Q15: YTD PERFORMANCE | S15: ='2.REGIONS DASHBOARD'!AG62 -> 0.7359535012 | U15: YTD PERFORMANCE | W15: ='2.REGIONS DASHBOARD'!AW62 -> 0.4435058078
A18: GAUTENG | H18: KZN | Q18: WESTERN CAPE
I20: GAUTENG | J20: Q1 | K20: Q2 | L20: Q3 | M20: Q4
I21: SET TARGET | J21: ='[3]2.Q-PROGRESS DASHBOARD'!$O$62 -> 1202 | K21: ='[3]2.Q-PROGRESS DASHBOARD'!$AB$62 -> 1202 | L21: ='[3]2.Q-PROGRESS DASHBOARD'!$AP$62 -> 2477 | M21: ='[3]2.Q-PROGRESS DASHBOARD'!$BE$62 -> 2145
I22: UPDATED TARGET | J22: =J21 -> 1202 | K22: ='[3]2.Q-PROGRESS DASHBOARD'!$AA$62 -> 1256.333333 | L22: ='[3]2.Q-PROGRESS DASHBOARD'!$AO$62 -> 1614 | M22: ='[3]2.Q-PROGRESS DASHBOARD'!$BD$62 -> 149
I23: ACTUAL | J23: ='[3]2.Q-PROGRESS DASHBOARD'!$W$62 -> 1039 | K23: ='[3]2.Q-PROGRESS DASHBOARD'!$AK$62 -> 3091 | L23: ='[3]2.Q-PROGRESS DASHBOARD'!$AZ$62 -> 3461 | M23: ='[3]2.Q-PROGRESS DASHBOARD'!$BP$62 -> 0
I25: KZN | J25: Q1 | K25: Q2 | L25: Q3 | M25: Q4
A26: gage 1 | I26: SET TARGET | J26: ='[4]2.Q-PROGRESS DASHBOARD'!$O$62 -> 1369 | K26: ='[4]2.Q-PROGRESS DASHBOARD'!$AB$62 -> 845 | L26: ='[4]2.Q-PROGRESS DASHBOARD'!$AP$62 -> 1923 | M26: ='[4]2.Q-PROGRESS DASHBOARD'!$BE$62 -> 1619
I27: UPDATED TARGET | J27: =J26 -> 1369 | K27: ='[4]2.Q-PROGRESS DASHBOARD'!$AA$62 -> 971.3333333 | L27: ='[4]2.Q-PROGRESS DASHBOARD'!$AO$62 -> 1625.5 | M27: ='[4]2.Q-PROGRESS DASHBOARD'!$BD$62 -> 2573
A28: Start | B28: 0 | I28: ACTUAL | J28: ='[4]2.Q-PROGRESS DASHBOARD'!$W$62 -> 466 | K28: ='[4]2.Q-PROGRESS DASHBOARD'!$AK$62 -> 1506 | L28: ='[4]2.Q-PROGRESS DASHBOARD'!$AZ$62 -> 687 | M28: ='[4]2.Q-PROGRESS DASHBOARD'!$BP$62 -> 0
A29: Red | B29: 75
A30: Yellow | B30: 15 | I30: WE | J30: Q1 | K30: Q2 | L30: Q3 | M30: Q4
A31: Green | B31: 15 | I31: SET TARGET | J31: ='[2]2.Q-PROGRESS DASHBOARD'!$O$62 -> 462 | K31: ='[2]2.Q-PROGRESS DASHBOARD'!$AB$62 -> 461 | L31: ='[2]2.Q-PROGRESS DASHBOARD'!$AP$62 -> 971 | M31: ='[2]2.Q-PROGRESS DASHBOARD'!$BE$62 -> 809
A32: Blank | B32: 100 | I32: UPDATED TARGET | J32: =J31 -> 462 | K32: ='[2]2.Q-PROGRESS DASHBOARD'!$AA$62 -> 587.6666667 | L32: ='[2]2.Q-PROGRESS DASHBOARD'!$AO$62 -> 1169 | M32: ='[2]2.Q-PROGRESS DASHBOARD'!$BD$62 -> 1863
I33: ACTUAL | J33: ='[2]2.Q-PROGRESS DASHBOARD'!$W$62 -> 82 | K33: ='[2]2.Q-PROGRESS DASHBOARD'!$AK$62 -> 445 | L33: ='[2]2.Q-PROGRESS DASHBOARD'!$AZ$62 -> 316 | M33: ='[2]2.Q-PROGRESS DASHBOARD'!$BP$62 -> 0
A34: Actual
A35: GV | B35: ='2.REGIONS DASHBOARD'!I62*100 -> 99.88448209
A36: GV+ | B36: 1
A37: End | B37: 122
A39: GAUTENG | C39: KZN | E39: WESTERN CAPE
A40: GV | B40: =O15*100 -> 140.8932596 | C40: GV | D40: =S15*100 -> 73.59535012 | E40: GV | F40: =W15*100 -> 44.35058078
A41: GV+ | B41: 1 | C41: GV+ | D41: 1 | E41: GV+ | F41: 1
A42: End | B42: 119 | C42: End | D42: 119 | E42: End | F42: 119
K69: ='2.REGIONS DASHBOARD'!I59*100 -> 4134.453782

Sheet GAUGE CHART
A1: GOVERNANCE - REGION KPI PERFORMANCE DASHBOARD
A5: 4.2.1 TOTAL WORKERS ENTERED 1 | E5: 4.2.1 TOTAL WORKERS CERTIFICATED 2 | I5: 4.2.1 TOTAL UNEMPLOYED ENTERED 3 | M5: 4.2.1 TOTAL UNEMPLOYED CERTIFICATED 4 | Q5: 4.2.1 TOTAL ARTISANS ENTERED 5
A15: 4.2.3 WORKPLACE EXPERIENCE 6 | E15: 4.3.2 FET COLLEGE PARTNERSHIPS 7 | I15: 4.4. AET PROGRAMMES ENTERED 8 | M15: 4.4. AET PROGRAMMES CERTIFICATED 9 | Q15: 4.6.1 CO-OPERATIVES 10
A25: 4.6.2 SMALL BUSINESS SUPPORT 11 | E25: 4.6.3 NGO, CBO,NLPE 12 | I25: 4.8 CAREER GUIDANCE 13 | M25: 4.2.1 TOTAL ARTISANS CERTIFICATION 14 | Q25: GAGE LEGEND
Q26: GAGE | R26: % RAGE | S26: ACTIVE GAGES
R27: 0 - 75% | T27: ACTIVE
R28: 76 - 99% | T28: NOT ACTIVE
R29: 100% +
Q30: INDICATOR
Q31: BLACK IND. | R31: TOTAL PROGRAME PREFORMANCE.
Q32: WHITE IND. | R32: LOWEST PROGRAME IN SECTION.
Q33: SINGEL IND. | R33: SINGEL PROGRAME TO THE GAUGE
A35: gage 1 | C35: gage 2 | E35: gage 3 | G35: gage 4 | I35: gage 5
A36: Start | B36: 0 | C36: Start | D36: 0 | E36: Start | F36: 0 | G36: Start | H36: 0 | I36: Start | J36: 0
A37: Red | B37: 75 | C37: Red | D37: 75 | E37: Red | F37: 75 | G37: Red | H37: 75 | I37: Red | J37: 75
A38: Yellow | B38: 15 | C38: Yellow | D38: 15 | E38: Yellow | F38: 15 | G38: Yellow | H38: 15 | I38: Yellow | J38: 15
A39: Green | B39: 15 | C39: Green | D39: 15 | E39: Green | F39: 15 | G39: Green | H39: 15 | I39: Green | J39: 15
A40: Blank | B40: 100 | C40: Blank | D40: 100 | E40: Blank | F40: 100 | G40: Blank | H40: 100 | I40: Blank | J40: 100
A41: Actual | C41: Actual | E41: Actual | G41: Actual | I41: Actual
A42: GV | B42: ='2.REGIONS DASHBOARD'!I12*100 -> 88.48876577 | C42: GV | D42: ='2.REGIONS DASHBOARD'!I18*100 -> 125.1803279 | E42: GV | F42: ='2.REGIONS DASHBOARD'!I25*100 -> 92.91808874 | G42: GV | H42: ='2.REGIONS DASHBOARD'!I32*100 -> 147.1511148 | I42: GV | J42: ='2.REGIONS DASHBOARD'!I37*100 -> 98.9380531
A43: GV+ | B43: 1 | C43: GV+ | D43: 1 | E43: GV+ | F43: 1 | G43: GV+ | H43: 1 | I43: GV+ | J43: 1
A44: End | B44: 122 | C44: End | D44: 122 | E44: End | F44: 122 | G44: End | H44: 122 | I44: End | J44: 122
A46: min | C46: min | E46: min | G46: min | I46: min
A47: GV | B47: ='2.REGIONS DASHBOARD'!I13*100 -> 50 | C47: GV | D47: ='2.REGIONS DASHBOARD'!I19*100 ->  | E47: GV | F47: ='2.REGIONS DASHBOARD'!I26*100 -> 57.7689243 | G47: GV | H47: ='2.REGIONS DASHBOARD'!I33*100 -> 29.36507937 | I47: GV | J47: ='2.REGIONS DASHBOARD'!I38*100 -> 96.76025918
A48: GV+ | B48: 1 | C48: GV+ | D48: 1 | E48: GV+ | F48: 1 | G48: GV+ | H48: 1 | I48: GV+ | J48: 1
A49: End | B49: 119 | C49: End | D49: 119 | E49: End | F49: 119 | G49: End | H49: 119 | I49: End | J49: 119
A51: gage 6 | C51: gage 7 | E51: gage 8 | G51: gage 9 | I51: gage 10
A52: Gauge | C52: Gauge | E52: Gauge | G52: Gauge | I52: Gauge
A53: Start | B53: 0 | C53: Start | D53: 0 | E53: Start | F53: 0 | G53: Start | H53: 0 | I53: Start | J53: 0
A54: Red | B54: 75 | C54: Red | D54: 75 | E54: Red | F54: 75 | G54: Red | H54: 75 | I54: Red | J54: 75
A55: Yellow | B55: 15 | C55: Yellow | D55: 15 | E55: Yellow | F55: 15 | G55: Yellow | H55: 15 | I55: Yellow | J55: 15
A56: Green | B56: 15 | C56: Green | D56: 15 | E56: Green | F56: 15 | G56: Green | H56: 15 | I56: Green | J56: 15
A57: Blank | B57: 100 | C57: Blank | D57: 100 | E57: Blank | F57: 100 | G57: Blank | H57: 100 | I57: Blank | J57: 100
A58: Actual | C58: Actual | E58: Actual | G58: Actual | I58: Actual
A59: GV | B59: ='2.REGIONS DASHBOARD'!I44*100 -> 68.36283186 | C59: GV | D59: ='2.REGIONS DASHBOARD'!I45*100 -> 75 | E59: GV | F59: ='2.REGIONS DASHBOARD'!I46*100 -> 0 | G59: GV | H59: ='2.REGIONS DASHBOARD'!I47*100 ->  | I59: GV | J59: ='2.REGIONS DASHBOARD'!I48*100 -> 106.25
A60: GV+ | B60: 1 | C60: GV+ | D60: 1 | E60: GV+ | F60: 1 | G60: GV+ | H60: 1 | I60: GV+ | J60: 1
A61: End | B61: 122 | C61: End | D61: 122 | E61: End | F61: 122 | G61: End | H61: 122 | I61: End | J61: 122
A63: min | C63: min | E63: min | G63: min | I63: min
A64: GV | B64: 20 | C64: GV | D64: 20 | E64: GV | F64: 20 | G64: GV | H64: 20 | I64: GV | J64: 20
A65: GV+ | B65: 1 | C65: GV+ | D65: 1 | E65: GV+ | F65: 1 | G65: GV+ | H65: 1 | I65: GV+ | J65: 1
A66: End | B66: 119 | C66: End | D66: 119 | E66: End | F66: 119 | G66: End | H66: 119 | I66: End | J66: 119
A69: gage 11 | C69: gage 12 | E69: gage 13 | G69: gage 14
A70: Gauge | C70: Gauge | E70: Gauge | G70: Gauge
A71: Start | B71: 0 | C71: Start | D71: 0 | E71: Start | F71: 0 | G71: Start | H71: 0
A72: Red | B72: 75 | C72: Red | D72: 75 | E72: Red | F72: 75 | G72: Red | H72: 75
A73: Yellow | B73: 15 | C73: Yellow | D73: 15 | E73: Yellow | F73: 15 | G73: Yellow | H73: 15
A74: Green | B74: 15 | C74: Green | D74: 15 | E74: Green | F74: 15 | G74: Green | H74: 15
A75: Blank | B75: 100 | C75: Blank | D75: 100 | E75: Blank | F75: 100 | G75: Blank | H75: 100
A76: Actual | C76: Actual | E76: Actual | G76: Actual | K76: ='2.REGIONS DASHBOARD'!I59*100 -> 4134.453782
A77: GV | B77: ='2.REGIONS DASHBOARD'!I49*100 -> 71.42857143 | C77: GV | D77: ='2.REGIONS DASHBOARD'!I57*100 -> 25 | E77: GV | F77: =IF(K76>140,140,K76) -> 140 | G77: GV | H77: ='2.REGIONS DASHBOARD'!I42*100 -> 94.9044586
A78: GV+ | B78: 1 | C78: GV+ | D78: 1 | E78: GV+ | F78: 1 | G78: GV+ | H78: 1
A79: End | B79: 122 | C79: End | D79: 122 | E79: End | F79: 122 | G79: End | H79: 122
A80: min | C80: min | E80: min | G80: min
A81: GV | B81: 20 | C81: GV | D81: ='2.REGIONS DASHBOARD'!I58*100 -> 0 | E81: GV | F81: 20 | G81: GV | H81: ='2.REGIONS DASHBOARD'!I43*100 -> 89.09090909
A82: GV+ | B82: 1 | C82: GV+ | D82: 1 | E82: GV+ | F82: 1 | G82: GV+ | H82: 1
A83: End | B83: 119 | C83: End | D83: 119 | E83: End | F83: 119 | G83: End | H83: 119

Sheet 2.REGIONS DASHBOARD
A2: REGION PERFORMANCE Q -PROGRESS DASHBOARD
C4: CHIETA SQMR OVERVIEW | K4: GAUTENG | AA4: KZN | AQ4: WESTERN CAPE
C6: CHIETA OVERVIEW PERFORMANCE | K6: OVERVIEW PERFORMANCE | S6: Q1 | U6: Q2 | W6: Q3 | Y6: Q4 | AA6: OVERVIEW PERFORMANCE | AI6: Q1 | AK6: Q2 | AM6: Q3 | AO6: Q4 | AQ6: OVERVIEW PERFORMANCE | AY6: Q1 | BA6: Q2 | BC6: Q3 | BE6: Q4
C7: ANNUAL TARGET | D7: ='[6]2.Q-PROGRESS DASHBOARD'!$D$7 -> YTD VARIANCE | E7: YTD ACTUAL | F7: YTD BACKLOG | G7: SUM | I7: YTD PERFORMANCE | K7: ANNUAL TARGET | L7: ='[6]2.Q-PROGRESS DASHBOARD'!$D$7 -> YTD VARIANCE | M7: YTD ACTUAL | N7: YTD BACKLOG | O7: SUM | Q7: YTD PERFORMANCE | S7: TARGET % | U7: TARGET % | W7: TARGET % | Y7: TARGET % | AA7: ANNUAL TARGET | AB7: ='[6]2.Q-PROGRESS DASHBOARD'!$D$7 -> YTD VARIANCE | AC7: YTD ACTUAL | AD7: YTD BACKLOG | AE7: SUM | AG7: YTD PERFORMANCE | AI7: TARGET % | AK7: TARGET % | AM7: TARGET % | AO7: TARGET % | AQ7: ANNUAL TARGET | AR7: ='[6]2.Q-PROGRESS DASHBOARD'!$D$7 -> YTD VARIANCE | AS7: YTD ACTUAL | AT7: YTD BACKLOG | AU7: SUM | AW7: YTD PERFORMANCE | AY7: TARGET % | BA7: TARGET % | BC7: TARGET % | BE7: TARGET %
A8: 4.2.1 TOTAL WORKERS ENTERED
A9: 4.2.1 LEARNER SHIPS WORKERS ENTERED | C9: =SUM(K9,AA9,AQ9) -> 1500 | D9: =SUM(L9,AB9,AR9) -> -246 | E9: =SUM(M9,AC9,AS9) -> 1746 | F9: =SUM(N9,AD9,AT9) -> -697 | G9: =SUM(E9,F9) -> 1049 | I9: =E9/G9 -> 1.664442326 | K9: ='[3]1.OVERVIEW CHART DASHBOARD'!C9 -> 705 | L9: ='[3]1.OVERVIEW CHART DASHBOARD'!D9 -> -576 | M9: ='[3]1.OVERVIEW CHART DASHBOARD'!E9 -> 1281 | N9: ='[3]1.OVERVIEW CHART DASHBOARD'!F9 -> -788 | O9: =SUM(M9,N9) -> 493 | Q9: =M9/O9 -> 2.598377282 | S9: ='[3]1.OVERVIEW CHART DASHBOARD'!J9 -> 1.843971631 | U9: ='[3]1.OVERVIEW CHART DASHBOARD'!L9 -> 6.345394737 | W9: ='[3]1.OVERVIEW CHART DASHBOARD'!N9 -> -3.798994975 | Y9: ='[3]1.OVERVIEW CHART DASHBOARD'!P9 -> 0 | AA9: ='[4]1.OVERVIEW CHART DASHBOARD'!C9 -> 525 | AB9: ='[4]1.OVERVIEW CHART DASHBOARD'!D9 -> 194 | AC9: ='[4]1.OVERVIEW CHART DASHBOARD'!E9 -> 331 | AD9: ='[4]1.OVERVIEW CHART DASHBOARD'!F9 -> 36 | AE9: =SUM(AC9,AD9) -> 367 | AG9: =AC9/AE9 -> 0.9019073569 | AI9: ='[4]1.OVERVIEW CHART DASHBOARD'!J9 -> 0.8571428571 | AK9: ='[4]1.OVERVIEW CHART DASHBOARD'!L9 -> 0.7909090909 | AM9: ='[4]1.OVERVIEW CHART DASHBOARD'!N9 -> 0.8876080692 | AO9: ='[4]1.OVERVIEW CHART DASHBOARD'!P9 -> 0 | AQ9: ='[2]1.OVERVIEW CHART DASHBOARD'!C9 -> 270 | AR9: ='[2]1.OVERVIEW CHART DASHBOARD'!D9 -> 136 | AS9: ='[2]1.OVERVIEW CHART DASHBOARD'!E9 -> 134 | AT9: ='[2]1.OVERVIEW CHART DASHBOARD'!F9 -> 55 | AU9: =SUM(AS9,AT9) -> 189 | AW9: =AS9/AU9 -> 0.708994709 | AY9: ='[2]1.OVERVIEW CHART DASHBOARD'!J9 -> 0.462962963 | BA9: ='[2]1.OVERVIEW CHART DASHBOARD'!L9 -> 0.9267015707 | BC9: ='[2]1.OVERVIEW CHART DASHBOARD'!N9 -> 0.5376344086 | BE9: ='[2]1.OVERVIEW CHART DASHBOARD'!P9 -> 0
A10: 4.2.1 BURSARIES WORKERS ENTERED | C10: =SUM(K10,AA10,AQ10) -> 100 | D10: =SUM(L10,AB10,AR10) -> 21 | E10: =SUM(M10,AC10,AS10) -> 79 | F10: =SUM(N10,AD10,AT10) -> 21 | G10: =SUM(E10,F10) -> 100 | I10: =E10/G10 -> 0.79 | K10: ='[3]1.OVERVIEW CHART DASHBOARD'!C10 -> 47 | L10: ='[3]1.OVERVIEW CHART DASHBOARD'!D10 -> -11 | M10: ='[3]1.OVERVIEW CHART DASHBOARD'!E10 -> 58 | N10: ='[3]1.OVERVIEW CHART DASHBOARD'!F10 -> -11 | O10: =SUM(M10,N10) -> 47 | Q10: =M10/O10 -> 1.234042553 | S10: ='[3]1.OVERVIEW CHART DASHBOARD'!J10 -> NO TARGET | U10: ='[3]1.OVERVIEW CHART DASHBOARD'!L10 -> NO TARGET | W10: ='[3]1.OVERVIEW CHART DASHBOARD'!N10 -> 1.064935065 | Y10: ='[3]1.OVERVIEW CHART DASHBOARD'!P10 -> NO TARGET | AA10: ='[4]1.OVERVIEW CHART DASHBOARD'!C10 -> 35 | AB10: ='[4]1.OVERVIEW CHART DASHBOARD'!D10 -> 30 | AC10: ='[4]1.OVERVIEW CHART DASHBOARD'!E10 -> 5 | AD10: ='[4]1.OVERVIEW CHART DASHBOARD'!F10 -> 30 | AE10: =SUM(AC10,AD10) -> 35 | AG10: =AC10/AE10 -> 0.1428571429 | AI10: ='[4]1.OVERVIEW CHART DASHBOARD'!J10 -> NO TARGET | AK10: ='[4]1.OVERVIEW CHART DASHBOARD'!L10 -> NO TARGET | AM10: ='[4]1.OVERVIEW CHART DASHBOARD'!N10 -> 0 | AO10: ='[4]1.OVERVIEW CHART DASHBOARD'!P10 -> NO TARGET | AQ10: ='[2]1.OVERVIEW CHART DASHBOARD'!C10 -> 18 | AR10: ='[2]1.OVERVIEW CHART DASHBOARD'!D10 -> 2 | AS10: ='[2]1.OVERVIEW CHART DASHBOARD'!E10 -> 16 | AT10: ='[2]1.OVERVIEW CHART DASHBOARD'!F10 -> 2 | AU10: =SUM(AS10,AT10) -> 18 | AW10: =AS10/AU10 -> 0.8888888889 | AY10: ='[2]1.OVERVIEW CHART DASHBOARD'!J10 -> NO TARGET | BA10: ='[2]1.OVERVIEW CHART DASHBOARD'!L10 -> NO TARGET | BC10: ='[2]1.OVERVIEW CHART DASHBOARD'!N10 -> 0 | BE10: ='[2]1.OVERVIEW CHART DASHBOARD'!P10 -> NO TARGET
A11: 4.2.1 SKILLS PROGRAMMES WORKERS ENTERED | C11: 3000 | D11: 1950 | E11: 1050 | F11: 1050 | G11: 2100 | I11: 0.5 | K11: ='[3]1.OVERVIEW CHART DASHBOARD'!C11 -> 1410 | L11: ='[3]1.OVERVIEW CHART DASHBOARD'!D11 -> 650 | M11: ='[3]1.OVERVIEW CHART DASHBOARD'!E11 -> 760 | N11: ='[3]1.OVERVIEW CHART DASHBOARD'!F11 -> 227 | O11: 987 | Q11: 0.7700101317 | S11: ='[3]1.OVERVIEW CHART DASHBOARD'!J11 -> 0.0780141844 | U11: ='[3]1.OVERVIEW CHART DASHBOARD'!L11 -> 0.6374321881 | W11: ='[3]1.OVERVIEW CHART DASHBOARD'!N11 -> 0.8725065048 | Y11: ='[3]1.OVERVIEW CHART DASHBOARD'!P11 -> 0 | AA11: ='[4]1.OVERVIEW CHART DASHBOARD'!C11 -> 1050 | AB11: ='[4]1.OVERVIEW CHART DASHBOARD'!D11 -> 761 | AC11: ='[4]1.OVERVIEW CHART DASHBOARD'!E11 -> 289 | AD11: ='[4]1.OVERVIEW CHART DASHBOARD'!F11 -> 446 | AE11: 735 | AG11: 0.3931972789 | AI11: ='[4]1.OVERVIEW CHART DASHBOARD'!J11 -> 0.02857142857 | AK11: ='[4]1.OVERVIEW CHART DASHBOARD'!L11 -> 0.9676258993 | AM11: ='[4]1.OVERVIEW CHART DASHBOARD'!N11 -> 0.04341085271 | AO11: ='[4]1.OVERVIEW CHART DASHBOARD'!P11 -> 0 | AQ11: ='[2]1.OVERVIEW CHART DASHBOARD'!C11 -> 540 | AR11: ='[2]1.OVERVIEW CHART DASHBOARD'!D11 -> 539 | AS11: ='[2]1.OVERVIEW CHART DASHBOARD'!E11 -> 1 | AT11: ='[2]1.OVERVIEW CHART DASHBOARD'!F11 -> 377 | AU11: 378 | AW11: 0.002645502646 | AY11: ='[2]1.OVERVIEW CHART DASHBOARD'!J11 -> 0.009259259259 | BA11: ='[2]1.OVERVIEW CHART DASHBOARD'!L11 -> 0 | BC11: ='[2]1.OVERVIEW CHART DASHBOARD'!N11 -> 0 | BE11: ='[2]1.OVERVIEW CHART DASHBOARD'!P11 -> 0
A12: TOTALS | C12: 4600 | D12: 1725 | E12: 2875 | F12: 374 | G12: 3249 | I12: 0.8848876577 | K12: ='[3]1.OVERVIEW CHART DASHBOARD'!C12 -> 2162 | L12: ='[3]1.OVERVIEW CHART DASHBOARD'!D12 -> 63 | M12: ='[3]1.OVERVIEW CHART DASHBOARD'!E12 -> 2099 | N12: ='[3]1.OVERVIEW CHART DASHBOARD'!F12 -> -572 | O12: 1527 | Q12: 1.374590701 | S12: ='[3]1.OVERVIEW CHART DASHBOARD'!J12 -> 0.6666666667 | U12: ='[3]1.OVERVIEW CHART DASHBOARD'!L12 -> 1.904255319 | W12: ='[3]1.OVERVIEW CHART DASHBOARD'!N12 -> 1.788554801 | Y12: ='[3]1.OVERVIEW CHART DASHBOARD'!P12 -> 0 | AA12: ='[4]1.OVERVIEW CHART DASHBOARD'!C12 -> 1610 | AB12: ='[4]1.OVERVIEW CHART DASHBOARD'!D12 -> 985 | AC12: ='[4]1.OVERVIEW CHART DASHBOARD'!E12 -> 625 | AD12: ='[4]1.OVERVIEW CHART DASHBOARD'!F12 -> 512 | AE12: 1137 | AG12: 0.5496921724 | AI12: ='[4]1.OVERVIEW CHART DASHBOARD'!J12 -> 0.3047619048 | AK12: ='[4]1.OVERVIEW CHART DASHBOARD'!L12 -> 0.9304123711 | AM12: ='[4]1.OVERVIEW CHART DASHBOARD'!N12 -> 0.3178807947 | AO12: ='[4]1.OVERVIEW CHART DASHBOARD'!P12 -> 0 | AQ12: ='[2]1.OVERVIEW CHART DASHBOARD'!C12 -> 828 | AR12: ='[2]1.OVERVIEW CHART DASHBOARD'!D12 -> 677 | AS12: ='[2]1.OVERVIEW CHART DASHBOARD'!E12 -> 151 | AT12: ='[2]1.OVERVIEW CHART DASHBOARD'!F12 -> 434 | AU12: 585 | AW12: 0.2581196581 | AY12: ='[2]1.OVERVIEW CHART DASHBOARD'!J12 -> 0.1604938272 | BA12: ='[2]1.OVERVIEW CHART DASHBOARD'!L12 -> 0.3617363344 | BC12: ='[2]1.OVERVIEW CHART DASHBOARD'!N12 -> 0.1342281879 | BE12: ='[2]1.OVERVIEW CHART DASHBOARD'!P12 -> 0
I13: =MIN(I9:I11) -> 0.5
A14: 4.2.1 TOTAL WORKERS CERTIFICATED
A15: 4.2.1 LEARNER SHIPS WORKERS CERTIFICATED | C15: 751 | D15: -28 | E15: 779 | F15: -254 | G15: 525 | I15: 1.483809524 | K15: ='[3]1.OVERVIEW CHART DASHBOARD'!C15 -> 353 | L15: ='[3]1.OVERVIEW CHART DASHBOARD'!D15 -> -149 | M15: ='[3]1.OVERVIEW CHART DASHBOARD'!E15 -> 502 | N15: ='[3]1.OVERVIEW CHART DASHBOARD'!F15 -> -255 | O15: 247 | Q15: 2.032388664 | S15: ='[3]1.OVERVIEW CHART DASHBOARD'!J15 -> 1.816901408 | U15: ='[3]1.OVERVIEW CHART DASHBOARD'!L15 -> 4.606451613 | W15: ='[3]1.OVERVIEW CHART DASHBOARD'!N15 -> -18 | Y15: ='[3]1.OVERVIEW CHART DASHBOARD'!P15 -> 0 | AA15: ='[4]1.OVERVIEW CHART DASHBOARD'!C15 -> 263 | AB15: ='[4]1.OVERVIEW CHART DASHBOARD'!D15 -> 55 | AC15: ='[4]1.OVERVIEW CHART DASHBOARD'!E15 -> 208 | AD15: ='[4]1.OVERVIEW CHART DASHBOARD'!F15 -> -24 | AE15: 184 | AG15: 1.130434783 | AI15: ='[4]1.OVERVIEW CHART DASHBOARD'!J15 -> 1 | AK15: ='[4]1.OVERVIEW CHART DASHBOARD'!L15 -> 1.037735849 | AM15: ='[4]1.OVERVIEW CHART DASHBOARD'!N15 -> 1.298701299 | AO15: ='[4]1.OVERVIEW CHART DASHBOARD'!P15 -> 0 | AQ15: ='[2]1.OVERVIEW CHART DASHBOARD'!C15 -> 135 | AR15: ='[2]1.OVERVIEW CHART DASHBOARD'!D15 -> 66 | AS15: ='[2]1.OVERVIEW CHART DASHBOARD'!E15 -> 69 | AT15: ='[2]1.OVERVIEW CHART DASHBOARD'!F15 -> 25 | AU15: 94 | AW15: 0.7340425532 | AY15: ='[2]1.OVERVIEW CHART DASHBOARD'!J15 -> 0.03703703704 | BA15: ='[2]1.OVERVIEW CHART DASHBOARD'!L15 -> 0.02803738318 | BC15: ='[2]1.OVERVIEW CHART DASHBOARD'!N15 -> 1.015151515 | BE15: ='[2]1.OVERVIEW CHART DASHBOARD'!P15 -> 0
A16: 4.2.1 BURSARIES WORKERS CERTIFICATED | C16: 60 | D16: 55 | E16: 5 | F16: -5 | G16: 0 | K16: ='[3]1.OVERVIEW CHART DASHBOARD'!C16 -> 24 | L16: ='[3]1.OVERVIEW CHART DASHBOARD'!D16 -> 24 | M16: ='[3]1.OVERVIEW CHART DASHBOARD'!E16 -> 0 | N16: ='[3]1.OVERVIEW CHART DASHBOARD'!F16 -> 0 | O16: 0 | S16: ='[3]1.OVERVIEW CHART DASHBOARD'!J16 -> NO TARGET | U16: ='[3]1.OVERVIEW CHART DASHBOARD'!L16 -> NO TARGET | W16: ='[3]1.OVERVIEW CHART DASHBOARD'!N16 -> NO TARGET | Y16: ='[3]1.OVERVIEW CHART DASHBOARD'!P16 -> 0 | AA16: ='[4]1.OVERVIEW CHART DASHBOARD'!C16 -> 18 | AB16: ='[4]1.OVERVIEW CHART DASHBOARD'!D16 -> 18 | AC16: ='[4]1.OVERVIEW CHART DASHBOARD'!E16 -> 0 | AD16: ='[4]1.OVERVIEW CHART DASHBOARD'!F16 -> 0 | AE16: 0 | AI16: ='[4]1.OVERVIEW CHART DASHBOARD'!J16 -> NO TARGET | AK16: ='[4]1.OVERVIEW CHART DASHBOARD'!L16 -> NO TARGET | AM16: ='[4]1.OVERVIEW CHART DASHBOARD'!N16 -> NO TARGET | AO16: ='[4]1.OVERVIEW CHART DASHBOARD'!P16 -> 0 | AQ16: ='[2]1.OVERVIEW CHART DASHBOARD'!C16 -> 18 | AR16: ='[2]1.OVERVIEW CHART DASHBOARD'!D16 -> 13 | AS16: ='[2]1.OVERVIEW CHART DASHBOARD'!E16 -> 5 | AT16: ='[2]1.OVERVIEW CHART DASHBOARD'!F16 -> -5 | AU16: 0 | AY16: ='[2]1.OVERVIEW CHART DASHBOARD'!J16 -> NO TARGET | BA16: ='[2]1.OVERVIEW CHART DASHBOARD'!L16 -> NO TARGET | BC16: ='[2]1.OVERVIEW CHART DASHBOARD'!N16 -> NO TARGET | BE16: ='[2]1.OVERVIEW CHART DASHBOARD'!P16 -> 0
A17: 4.2.1 SKILLS PROGRAMMES WORKERS CERTIFICATED | C17: 1504 | D17: 379 | E17: 1125 | F17: -125 | G17: 1000 | I17: 1.125 | K17: ='[3]1.OVERVIEW CHART DASHBOARD'!C17 -> 709 | L17: ='[3]1.OVERVIEW CHART DASHBOARD'!D17 -> 105 | M17: ='[3]1.OVERVIEW CHART DASHBOARD'!E17 -> 604 | N17: ='[3]1.OVERVIEW CHART DASHBOARD'!F17 -> -133 | O17: 471 | Q17: 1.282377919 | S17: ='[3]1.OVERVIEW CHART DASHBOARD'!J17 -> 0.02564102564 | U17: ='[3]1.OVERVIEW CHART DASHBOARD'!L17 -> 1.95483871 | W17: ='[3]1.OVERVIEW CHART DASHBOARD'!N17 -> 1.482587065 | Y17: ='[3]1.OVERVIEW CHART DASHBOARD'!P17 -> 0 | AA17: ='[4]1.OVERVIEW CHART DASHBOARD'!C17 -> 525 | AB17: ='[4]1.OVERVIEW CHART DASHBOARD'!D17 -> 115 | AC17: ='[4]1.OVERVIEW CHART DASHBOARD'!E17 -> 410 | AD17: ='[4]1.OVERVIEW CHART DASHBOARD'!F17 -> -61 | AE17: 349 | AG17: 1.1747851 | AI17: ='[4]1.OVERVIEW CHART DASHBOARD'!J17 -> 0.03448275862 | AK17: ='[4]1.OVERVIEW CHART DASHBOARD'!L17 -> 3.513043478 | AM17: ='[4]1.OVERVIEW CHART DASHBOARD'!N17 -> 0.05128205128 | AO17: ='[4]1.OVERVIEW CHART DASHBOARD'!P17 -> 0 | AQ17: ='[2]1.OVERVIEW CHART DASHBOARD'!C17 -> 270 | AR17: ='[2]1.OVERVIEW CHART DASHBOARD'!D17 -> 159 | AS17: ='[2]1.OVERVIEW CHART DASHBOARD'!E17 -> 111 | AT17: ='[2]1.OVERVIEW CHART DASHBOARD'!F17 -> 69 | AU17: 180 | AW17: 0.6166666667 | AY17: ='[2]1.OVERVIEW CHART DASHBOARD'!J17 -> 0 | BA17: ='[2]1.OVERVIEW CHART DASHBOARD'!L17 -> 1.8 | BC17: ='[2]1.OVERVIEW CHART DASHBOARD'!N17 -> 0.03703703704 | BE17: ='[2]1.OVERVIEW CHART DASHBOARD'!P17 -> 0
A18: TOTALS | C18: 2315 | D18: 406 | E18: 1909 | F18: -384 | G18: 1525 | I18: 1.251803279 | K18: ='[3]1.OVERVIEW CHART DASHBOARD'!C18 -> 1086 | L18: ='[3]1.OVERVIEW CHART DASHBOARD'!D18 -> -20 | M18: ='[3]1.OVERVIEW CHART DASHBOARD'!E18 -> 1106 | N18: ='[3]1.OVERVIEW CHART DASHBOARD'!F18 -> -388 | O18: 718 | Q18: 1.540389972 | S18: ='[3]1.OVERVIEW CHART DASHBOARD'!J18 -> 0.7021276596 | U18: ='[3]1.OVERVIEW CHART DASHBOARD'!L18 -> 2.617741935 | W18: ='[3]1.OVERVIEW CHART DASHBOARD'!N18 -> 2.237726098 | Y18: ='[3]1.OVERVIEW CHART DASHBOARD'!P18 -> 0 | AA18: ='[4]1.OVERVIEW CHART DASHBOARD'!C18 -> 806 | AB18: ='[4]1.OVERVIEW CHART DASHBOARD'!D18 -> 188 | AC18: ='[4]1.OVERVIEW CHART DASHBOARD'!E18 -> 618 | AD18: ='[4]1.OVERVIEW CHART DASHBOARD'!F18 -> -85 | AE18: 533 | AG18: 1.159474672 | AI18: ='[4]1.OVERVIEW CHART DASHBOARD'!J18 -> 0.4 | AK18: ='[4]1.OVERVIEW CHART DASHBOARD'!L18 -> 2.732142857 | AM18: ='[4]1.OVERVIEW CHART DASHBOARD'!N18 -> 0.7601476015 | AO18: ='[4]1.OVERVIEW CHART DASHBOARD'!P18 -> 0 | AQ18: ='[2]1.OVERVIEW CHART DASHBOARD'!C18 -> 423 | AR18: ='[2]1.OVERVIEW CHART DASHBOARD'!D18 -> 238 | AS18: ='[2]1.OVERVIEW CHART DASHBOARD'!E18 -> 185 | AT18: ='[2]1.OVERVIEW CHART DASHBOARD'!F18 -> 89 | AU18: 274 | AW18: 0.6751824818 | AY18: ='[2]1.OVERVIEW CHART DASHBOARD'!J18 -> 0.01388888889 | BA18: ='[2]1.OVERVIEW CHART DASHBOARD'!L18 -> 1.139372822 | BC18: ='[2]1.OVERVIEW CHART DASHBOARD'!N18 -> 0.5102040816 | BE18: ='[2]1.OVERVIEW CHART DASHBOARD'!P18 -> 0
I19: =MIN(I15:I17) -> 
A20: 4.2.1 TOTAL UNEMPLOYED ENTERED
A21: 4.2.1 LEARNER SHIPS UNEMPLOYED ENTERED | C21: 2000 | D21: 619 | E21: 1381 | F21: -86 | G21: 1295 | I21: 1.066409266 | K21: ='[3]1.OVERVIEW CHART DASHBOARD'!C21 -> 940 | L21: ='[3]1.OVERVIEW CHART DASHBOARD'!D21 -> -8 | M21: ='[3]1.OVERVIEW CHART DASHBOARD'!E21 -> 948 | N21: ='[3]1.OVERVIEW CHART DASHBOARD'!F21 -> -314 | O21: 634 | Q21: 1.495268139 | S21: ='[3]1.OVERVIEW CHART DASHBOARD'!J21 -> 2.097560976 | U21: ='[3]1.OVERVIEW CHART DASHBOARD'!L21 -> 1.826923077 | W21: ='[3]1.OVERVIEW CHART DASHBOARD'!N21 -> 2.039408867 | Y21: ='[3]1.OVERVIEW CHART DASHBOARD'!P21 -> 0 | AA21: ='[4]1.OVERVIEW CHART DASHBOARD'!C21 -> 700 | AB21: ='[4]1.OVERVIEW CHART DASHBOARD'!D21 -> 345 | AC21: ='[4]1.OVERVIEW CHART DASHBOARD'!E21 -> 355 | AD21: ='[4]1.OVERVIEW CHART DASHBOARD'!F21 -> 63 | AE21: 418 | AG21: 0.8492822967 | AI21: ='[4]1.OVERVIEW CHART DASHBOARD'!J21 -> 2.544117647 | AK21: ='[4]1.OVERVIEW CHART DASHBOARD'!L21 -> 1.757575758 | AM21: ='[4]1.OVERVIEW CHART DASHBOARD'!N21 -> 0.5287846482 | AO21: ='[4]1.OVERVIEW CHART DASHBOARD'!P21 -> 0 | AQ21: ='[2]1.OVERVIEW CHART DASHBOARD'!C21 -> 360 | AR21: ='[2]1.OVERVIEW CHART DASHBOARD'!D21 -> 282 | AS21: ='[2]1.OVERVIEW CHART DASHBOARD'!E21 -> 78 | AT21: ='[2]1.OVERVIEW CHART DASHBOARD'!F21 -> 165 | AU21: 243 | AW21: 0.3209876543 | AY21: ='[2]1.OVERVIEW CHART DASHBOARD'!J21 -> 0.7301587302 | BA21: ='[2]1.OVERVIEW CHART DASHBOARD'!L21 -> 0.2038834951 | BC21: ='[2]1.OVERVIEW CHART DASHBOARD'!N21 -> 0.12 | BE21: ='[2]1.OVERVIEW CHART DASHBOARD'!P21 -> 0
A22: 4.2.1 BURSARY UNEMPLOYED ENTERED | C22: 251 | D22: 106 | E22: 145 | F22: 106 | G22: 251 | I22: 0.577689243 | K22: ='[3]1.OVERVIEW CHART DASHBOARD'!C22 -> 118 | L22: ='[3]1.OVERVIEW CHART DASHBOARD'!D22 -> 68 | M22: ='[3]1.OVERVIEW CHART DASHBOARD'!E22 -> 50 | N22: ='[3]1.OVERVIEW CHART DASHBOARD'!F22 -> 68 | O22: 118 | Q22: 0.4237288136 | S22: ='[3]1.OVERVIEW CHART DASHBOARD'!J22 -> NO TARGET | U22: ='[3]1.OVERVIEW CHART DASHBOARD'!L22 -> NO TARGET | W22: ='[3]1.OVERVIEW CHART DASHBOARD'!N22 -> 0 | Y22: ='[3]1.OVERVIEW CHART DASHBOARD'!P22 -> NO TARGET | AA22: ='[4]1.OVERVIEW CHART DASHBOARD'!C22 -> 88 | AB22: ='[4]1.OVERVIEW CHART DASHBOARD'!D22 -> 50 | AC22: ='[4]1.OVERVIEW CHART DASHBOARD'!E22 -> 38 | AD22: ='[4]1.OVERVIEW CHART DASHBOARD'!F22 -> 50 | AE22: 88 | AG22: 0.4318181818 | AI22: ='[4]1.OVERVIEW CHART DASHBOARD'!J22 -> NO TARGET | AK22: ='[4]1.OVERVIEW CHART DASHBOARD'!L22 -> NO TARGET | AM22: ='[4]1.OVERVIEW CHART DASHBOARD'!N22 -> 0 | AO22: ='[4]1.OVERVIEW CHART DASHBOARD'!P22 -> NO TARGET | AQ22: ='[2]1.OVERVIEW CHART DASHBOARD'!C22 -> 45 | AR22: ='[2]1.OVERVIEW CHART DASHBOARD'!D22 -> -12 | AS22: ='[2]1.OVERVIEW CHART DASHBOARD'!E22 -> 57 | AT22: ='[2]1.OVERVIEW CHART DASHBOARD'!F22 -> -12 | AU22: 45 | AW22: 1.266666667 | AY22: ='[2]1.OVERVIEW CHART DASHBOARD'!J22 -> NO TARGET | BA22: ='[2]1.OVERVIEW CHART DASHBOARD'!L22 -> NO TARGET | BC22: ='[2]1.OVERVIEW CHART DASHBOARD'!N22 -> 0 | BE22: ='[2]1.OVERVIEW CHART DASHBOARD'!P22 -> NO TARGET
A23: 4.2.1 INTERNSHIPS UNEMPLOYED ENTERED | C23: 100 | D23: 1 | E23: 99 | F23: -50 | G23: 49 | I23: 2.020408163 | K23: ='[3]1.OVERVIEW CHART DASHBOARD'!C23 -> 47 | L23: ='[3]1.OVERVIEW CHART DASHBOARD'!D23 -> -14 | M23: ='[3]1.OVERVIEW CHART DASHBOARD'!E23 -> 61 | N23: ='[3]1.OVERVIEW CHART DASHBOARD'!F23 -> -38 | O23: 23 | Q23: 2.652173913 | S23: ='[3]1.OVERVIEW CHART DASHBOARD'!J23 -> NO TARGET | U23: ='[3]1.OVERVIEW CHART DASHBOARD'!L23 -> NO TARGET | W23: ='[3]1.OVERVIEW CHART DASHBOARD'!N23 -> -0.1428571429 | Y23: ='[3]1.OVERVIEW CHART DASHBOARD'!P23 -> 0 | AA23: ='[4]1.OVERVIEW CHART DASHBOARD'!C23 -> 35 | AB23: ='[4]1.OVERVIEW CHART DASHBOARD'!D23 -> 3 | AC23: ='[4]1.OVERVIEW CHART DASHBOARD'!E23 -> 32 | AD23: ='[4]1.OVERVIEW CHART DASHBOARD'!F23 -> -15 | AE23: 17 | AG23: 1.882352941 | AI23: ='[4]1.OVERVIEW CHART DASHBOARD'!J23 -> NO TARGET | AK23: ='[4]1.OVERVIEW CHART DASHBOARD'!L23 -> NO TARGET | AM23: ='[4]1.OVERVIEW CHART DASHBOARD'!N23 -> 0 | AO23: ='[4]1.OVERVIEW CHART DASHBOARD'!P23 -> 0 | AQ23: ='[2]1.OVERVIEW CHART DASHBOARD'!C23 -> 18 | AR23: ='[2]1.OVERVIEW CHART DASHBOARD'!D23 -> 12 | AS23: ='[2]1.OVERVIEW CHART DASHBOARD'!E23 -> 6 | AT23: ='[2]1.OVERVIEW CHART DASHBOARD'!F23 -> 3 | AU23: 9 | AW23: 0.6666666667 | AY23: ='[2]1.OVERVIEW CHART DASHBOARD'!J23 -> NO TARGET | BA23: ='[2]1.OVERVIEW CHART DASHBOARD'!L23 -> NO TARGET | BC23: ='[2]1.OVERVIEW CHART DASHBOARD'!N23 -> 0 | BE23: ='[2]1.OVERVIEW CHART DASHBOARD'!P23 -> 0
A24: 4.2.1 SKILLS PROGRAMMES UNEMPLOYED ENTERED | C24: 1000 | D24: 447 | E24: 553 | F24: 196 | G24: 749 | I24: 0.738317757 | K24: ='[3]1.OVERVIEW CHART DASHBOARD'!C24 -> 470 | L24: ='[3]1.OVERVIEW CHART DASHBOARD'!D24 -> 167 | M24: ='[3]1.OVERVIEW CHART DASHBOARD'!E24 -> 303 | N24: ='[3]1.OVERVIEW CHART DASHBOARD'!F24 -> 48 | O24: 351 | Q24: 0.8632478632 | S24: ='[3]1.OVERVIEW CHART DASHBOARD'!J24 -> 0.05128205128 | U24: ='[3]1.OVERVIEW CHART DASHBOARD'!L24 -> 1.922077922 | W24: ='[3]1.OVERVIEW CHART DASHBOARD'!N24 -> 0.01204819277 | Y24: ='[3]1.OVERVIEW CHART DASHBOARD'!P24 -> 0 | AA24: ='[4]1.OVERVIEW CHART DASHBOARD'!C24 -> 350 | AB24: ='[4]1.OVERVIEW CHART DASHBOARD'!D24 -> 125 | AC24: ='[4]1.OVERVIEW CHART DASHBOARD'!E24 -> 225 | AD24: ='[4]1.OVERVIEW CHART DASHBOARD'!F24 -> 38 | AE24: 263 | AG24: 0.855513308 | AI24: ='[4]1.OVERVIEW CHART DASHBOARD'!J24 -> 0 | AK24: ='[4]1.OVERVIEW CHART DASHBOARD'!L24 -> 1.039772727 | AM24: ='[4]1.OVERVIEW CHART DASHBOARD'!N24 -> 1.775862069 | AO24: ='[4]1.OVERVIEW CHART DASHBOARD'!P24 -> 0 | AQ24: ='[2]1.OVERVIEW CHART DASHBOARD'!C24 -> 180 | AR24: ='[2]1.OVERVIEW CHART DASHBOARD'!D24 -> 155 | AS24: ='[2]1.OVERVIEW CHART DASHBOARD'!E24 -> 25 | AT24: ='[2]1.OVERVIEW CHART DASHBOARD'!F24 -> 110 | AU24: 135 | AW24: 0.1851851852 | AY24: ='[2]1.OVERVIEW CHART DASHBOARD'!J24 -> 0.04444444444 | BA24: ='[2]1.OVERVIEW CHART DASHBOARD'!L24 -> 0 | BC24: ='[2]1.OVERVIEW CHART DASHBOARD'!N24 -> 0.2584269663 | BE24: ='[2]1.OVERVIEW CHART DASHBOARD'!P24 -> 0
A25: TOTALS | C25: 3351 | D25: 1173 | E25: 2178 | F25: 166 | G25: 2344 | I25: 0.9291808874 | K25: ='[3]1.OVERVIEW CHART DASHBOARD'!C25 -> 1575 | L25: ='[3]1.OVERVIEW CHART DASHBOARD'!D25 -> 213 | M25: ='[3]1.OVERVIEW CHART DASHBOARD'!E25 -> 1362 | N25: ='[3]1.OVERVIEW CHART DASHBOARD'!F25 -> -236 | O25: 1126 | Q25: 1.209591474 | S25: ='[3]1.OVERVIEW CHART DASHBOARD'!J25 -> 1.444839858 | U25: ='[3]1.OVERVIEW CHART DASHBOARD'!L25 -> 2.256267409 | W25: ='[3]1.OVERVIEW CHART DASHBOARD'!N25 -> 1.11827957 | Y25: ='[3]1.OVERVIEW CHART DASHBOARD'!P25 -> 0 | AA25: ='[4]1.OVERVIEW CHART DASHBOARD'!C25 -> 1173 | AB25: ='[4]1.OVERVIEW CHART DASHBOARD'!D25 -> 523 | AC25: ='[4]1.OVERVIEW CHART DASHBOARD'!E25 -> 650 | AD25: ='[4]1.OVERVIEW CHART DASHBOARD'!F25 -> 136 | AE25: 786 | AG25: 0.8269720102 | AI25: ='[4]1.OVERVIEW CHART DASHBOARD'!J25 -> 1.358974359 | AK25: ='[4]1.OVERVIEW CHART DASHBOARD'!L25 -> 1.536407767 | AM25: ='[4]1.OVERVIEW CHART DASHBOARD'!N25 -> 0.6262068966 | AO25: ='[4]1.OVERVIEW CHART DASHBOARD'!P25 -> 0 | AQ25: ='[2]1.OVERVIEW CHART DASHBOARD'!C25 -> 603 | AR25: ='[2]1.OVERVIEW CHART DASHBOARD'!D25 -> 437 | AS25: ='[2]1.OVERVIEW CHART DASHBOARD'!E25 -> 166 | AT25: ='[2]1.OVERVIEW CHART DASHBOARD'!F25 -> 266 | AU25: 432 | AW25: 0.3842592593 | AY25: ='[2]1.OVERVIEW CHART DASHBOARD'!J25 -> 0.4907407407 | BA25: ='[2]1.OVERVIEW CHART DASHBOARD'!L25 -> 0.5699208443 | BC25: ='[2]1.OVERVIEW CHART DASHBOARD'!N25 -> 0.1567877629 | BE25: ='[2]1.OVERVIEW CHART DASHBOARD'!P25 -> 0
I26: =MIN(I21:I24) -> 0.577689243
A27: 4.2.1 TOTAL UNEMPLOYED CERTIFICATED
A28: 4.2.1 LEARNER SHIPS UNEMPLOYED CERTIFICATED | C28: 1000 | D28: -9 | E28: 1009 | F28: -309 | G28: 700 | I28: 1.441428571 | K28: ='[3]1.OVERVIEW CHART DASHBOARD'!C28 -> 470 | L28: ='[3]1.OVERVIEW CHART DASHBOARD'!D28 -> -137 | M28: ='[3]1.OVERVIEW CHART DASHBOARD'!E28 -> 607 | N28: ='[3]1.OVERVIEW CHART DASHBOARD'!F28 -> -278 | O28: 329 | Q28: 1.844984802 | S28: ='[3]1.OVERVIEW CHART DASHBOARD'!J28 -> 2.074468085 | U28: ='[3]1.OVERVIEW CHART DASHBOARD'!L28 -> 3.314917127 | W28: ='[3]1.OVERVIEW CHART DASHBOARD'!N28 -> 5.653333333 | Y28: ='[3]1.OVERVIEW CHART DASHBOARD'!P28 -> 0 | AA28: ='[4]1.OVERVIEW CHART DASHBOARD'!C28 -> 350 | AB28: ='[4]1.OVERVIEW CHART DASHBOARD'!D28 -> 21 | AC28: ='[4]1.OVERVIEW CHART DASHBOARD'!E28 -> 329 | AD28: ='[4]1.OVERVIEW CHART DASHBOARD'!F28 -> -84 | AE28: 245 | AG28: 1.342857143 | AI28: ='[4]1.OVERVIEW CHART DASHBOARD'!J28 -> 1.442857143 | AK28: ='[4]1.OVERVIEW CHART DASHBOARD'!L28 -> 1.927374302 | AM28: ='[4]1.OVERVIEW CHART DASHBOARD'!N28 -> 1.686567164 | AO28: ='[4]1.OVERVIEW CHART DASHBOARD'!P28 -> 0 | AQ28: ='[2]1.OVERVIEW CHART DASHBOARD'!C28 -> 180 | AR28: ='[2]1.OVERVIEW CHART DASHBOARD'!D28 -> 107 | AS28: ='[2]1.OVERVIEW CHART DASHBOARD'!E28 -> 73 | AT28: ='[2]1.OVERVIEW CHART DASHBOARD'!F28 -> 53 | AU28: 126 | AW28: 0.5793650794 | AY28: ='[2]1.OVERVIEW CHART DASHBOARD'!J28 -> 0.02777777778 | BA28: ='[2]1.OVERVIEW CHART DASHBOARD'!L28 -> 0.986013986 | BC28: ='[2]1.OVERVIEW CHART DASHBOARD'!N28 -> 0.3787878788 | BE28: ='[2]1.OVERVIEW CHART DASHBOARD'!P28 -> 0
A29: 4.2.1 BURSARY UNEMPLOYED CERTIFICATED | C29: 126 | D29: 89 | E29: 37 | F29: 89 | G29: 126 | I29: 0.2936507937 | K29: ='[3]1.OVERVIEW CHART DASHBOARD'!C29 -> 59 | L29: ='[3]1.OVERVIEW CHART DASHBOARD'!D29 -> 22 | M29: ='[3]1.OVERVIEW CHART DASHBOARD'!E29 -> 37 | N29: ='[3]1.OVERVIEW CHART DASHBOARD'!F29 -> 22 | O29: 59 | Q29: 0.6271186441 | S29: ='[3]1.OVERVIEW CHART DASHBOARD'!J29 -> NO TARGET | U29: ='[3]1.OVERVIEW CHART DASHBOARD'!L29 -> NO TARGET | W29: ='[3]1.OVERVIEW CHART DASHBOARD'!N29 -> 0.6271186441 | Y29: ='[3]1.OVERVIEW CHART DASHBOARD'!P29 -> NO TARGET | AA29: ='[4]1.OVERVIEW CHART DASHBOARD'!C29 -> 44 | AB29: ='[4]1.OVERVIEW CHART DASHBOARD'!D29 -> 44 | AC29: ='[4]1.OVERVIEW CHART DASHBOARD'!E29 -> 0 | AD29: ='[4]1.OVERVIEW CHART DASHBOARD'!F29 -> 44 | AE29: 44 | AG29: 0 | AI29: ='[4]1.OVERVIEW CHART DASHBOARD'!J29 -> NO TARGET | AK29: ='[4]1.OVERVIEW CHART DASHBOARD'!L29 -> NO TARGET | AM29: ='[4]1.OVERVIEW CHART DASHBOARD'!N29 -> 0 | AO29: ='[4]1.OVERVIEW CHART DASHBOARD'!P29 -> NO TARGET | AQ29: ='[2]1.OVERVIEW CHART DASHBOARD'!C29 -> 23 | AR29: ='[2]1.OVERVIEW CHART DASHBOARD'!D29 -> 23 | AS29: ='[2]1.OVERVIEW CHART DASHBOARD'!E29 -> 0 | AT29: ='[2]1.OVERVIEW CHART DASHBOARD'!F29 -> 23 | AU29: 23 | AW29: 0 | AY29: ='[2]1.OVERVIEW CHART DASHBOARD'!J29 -> NO TARGET | BA29: ='[2]1.OVERVIEW CHART DASHBOARD'!L29 -> NO TARGET | BC29: ='[2]1.OVERVIEW CHART DASHBOARD'!N29 -> 0 | BE29: ='[2]1.OVERVIEW CHART DASHBOARD'!P29 -> NO TARGET
A30: 4.2.1 INTERNSHIPS UNEMPLOYED CERTIFICATED | C30: 51 | D30: -2 | E30: 53 | F30: -17 | G30: 36 | I30: 1.472222222 | K30: ='[3]1.OVERVIEW CHART DASHBOARD'!C30 -> 24 | L30: ='[3]1.OVERVIEW CHART DASHBOARD'!D30 -> -6 | M30: ='[3]1.OVERVIEW CHART DASHBOARD'!E30 -> 30 | N30: ='[3]1.OVERVIEW CHART DASHBOARD'!F30 -> -13 | O30: 17 | Q30: 1.764705882 | S30: ='[3]1.OVERVIEW CHART DASHBOARD'!J30 -> 0 | U30: ='[3]1.OVERVIEW CHART DASHBOARD'!L30 -> 4.5 | W30: ='[3]1.OVERVIEW CHART DASHBOARD'!N30 -> 0 | Y30: ='[3]1.OVERVIEW CHART DASHBOARD'!P30 -> 0 | AA30: ='[4]1.OVERVIEW CHART DASHBOARD'!C30 -> 18 | AB30: ='[4]1.OVERVIEW CHART DASHBOARD'!D30 -> 5 | AC30: ='[4]1.OVERVIEW CHART DASHBOARD'!E30 -> 13 | AD30: ='[4]1.OVERVIEW CHART DASHBOARD'!F30 -> 0 | AE30: 13 | AG30: 1 | AI30: ='[4]1.OVERVIEW CHART DASHBOARD'!J30 -> 0 | AK30: ='[4]1.OVERVIEW CHART DASHBOARD'!L30 -> 0 | AM30: ='[4]1.OVERVIEW CHART DASHBOARD'!N30 -> 1.444444444 | AO30: ='[4]1.OVERVIEW CHART DASHBOARD'!P30 -> 0 | AQ30: ='[2]1.OVERVIEW CHART DASHBOARD'!C30 -> 9 | AR30: ='[2]1.OVERVIEW CHART DASHBOARD'!D30 -> -1 | AS30: ='[2]1.OVERVIEW CHART DASHBOARD'!E30 -> 10 | AT30: ='[2]1.OVERVIEW CHART DASHBOARD'!F30 -> -4 | AU30: 6 | AW30: 1.666666667 | AY30: ='[2]1.OVERVIEW CHART DASHBOARD'!J30 -> 0 | BA30: ='[2]1.OVERVIEW CHART DASHBOARD'!L30 -> 0.75 | BC30: ='[2]1.OVERVIEW CHART DASHBOARD'!N30 -> 2.666666667 | BE30: ='[2]1.OVERVIEW CHART DASHBOARD'!P30 -> 0
A31: 4.2.1 SKILLS PROGRAMMES UNEMPLOYED CERTIFICATED | C31: 500 | D31: -183 | E31: 683 | F31: -334 | G31: 349 | I31: 1.957020057 | K31: ='[3]1.OVERVIEW CHART DASHBOARD'!C31 -> 235 | L31: ='[3]1.OVERVIEW CHART DASHBOARD'!D31 -> -319 | M31: ='[3]1.OVERVIEW CHART DASHBOARD'!E31 -> 554 | N31: ='[3]1.OVERVIEW CHART DASHBOARD'!F31 -> -390 | O31: 164 | Q31: 3.37804878 | S31: ='[3]1.OVERVIEW CHART DASHBOARD'!J31 -> 0.02127659574 | U31: ='[3]1.OVERVIEW CHART DASHBOARD'!L31 -> 6.192513369 | W31: ='[3]1.OVERVIEW CHART DASHBOARD'!N31 -> -2.183006536 | Y31: ='[3]1.OVERVIEW CHART DASHBOARD'!P31 -> 0 | AA31: ='[4]1.OVERVIEW CHART DASHBOARD'!C31 -> 175 | AB31: ='[4]1.OVERVIEW CHART DASHBOARD'!D31 -> 47 | AC31: ='[4]1.OVERVIEW CHART DASHBOARD'!E31 -> 128 | AD31: ='[4]1.OVERVIEW CHART DASHBOARD'!F31 -> -6 | AE31: 122 | AG31: 1.049180328 | AI31: ='[4]1.OVERVIEW CHART DASHBOARD'!J31 -> 0 | AK31: ='[4]1.OVERVIEW CHART DASHBOARD'!L31 -> 1.521428571 | AM31: ='[4]1.OVERVIEW CHART DASHBOARD'!N31 -> 3.5625 | AO31: ='[4]1.OVERVIEW CHART DASHBOARD'!P31 -> 0 | AQ31: ='[2]1.OVERVIEW CHART DASHBOARD'!C31 -> 90 | AR31: ='[2]1.OVERVIEW CHART DASHBOARD'!D31 -> 89 | AS31: ='[2]1.OVERVIEW CHART DASHBOARD'!E31 -> 1 | AT31: ='[2]1.OVERVIEW CHART DASHBOARD'!F31 -> 62 | AU31: 63 | AW31: 0.01587301587 | AY31: ='[2]1.OVERVIEW CHART DASHBOARD'!J31 -> 0 | BA31: ='[2]1.OVERVIEW CHART DASHBOARD'!L31 -> 0 | BC31: ='[2]1.OVERVIEW CHART DASHBOARD'!N31 -> 0.02222222222 | BE31: ='[2]1.OVERVIEW CHART DASHBOARD'!P31 -> 0
A32: TOTALS | C32: 1677 | D32: -105 | E32: 1782 | F32: -571 | G32: 1211 | I32: 1.471511148 | K32: ='[3]1.OVERVIEW CHART DASHBOARD'!C32 -> 788 | L32: ='[3]1.OVERVIEW CHART DASHBOARD'!D32 -> -440 | M32: ='[3]1.OVERVIEW CHART DASHBOARD'!E32 -> 1228 | N32: ='[3]1.OVERVIEW CHART DASHBOARD'!F32 -> -659 | O32: 569 | Q32: 2.158172232 | S32: ='[3]1.OVERVIEW CHART DASHBOARD'!J32 -> 1.342465753 | U32: ='[3]1.OVERVIEW CHART DASHBOARD'!L32 -> 4.762886598 | W32: ='[3]1.OVERVIEW CHART DASHBOARD'!N32 -> 24.47058824 | Y32: ='[3]1.OVERVIEW CHART DASHBOARD'!P32 -> 0 | AA32: ='[4]1.OVERVIEW CHART DASHBOARD'!C32 -> 587 | AB32: ='[4]1.OVERVIEW CHART DASHBOARD'!D32 -> 117 | AC32: ='[4]1.OVERVIEW CHART DASHBOARD'!E32 -> 470 | AD32: ='[4]1.OVERVIEW CHART DASHBOARD'!F32 -> -46 | AE32: 424 | AG32: 1.108490566 | AI32: ='[4]1.OVERVIEW CHART DASHBOARD'!J32 -> 0.9266055046 | AK32: ='[4]1.OVERVIEW CHART DASHBOARD'!L32 -> 1.665671642 | AM32: ='[4]1.OVERVIEW CHART DASHBOARD'!N32 -> 1.345588235 | AO32: ='[4]1.OVERVIEW CHART DASHBOARD'!P32 -> 0 | AQ32: ='[2]1.OVERVIEW CHART DASHBOARD'!C32 -> 302 | AR32: ='[2]1.OVERVIEW CHART DASHBOARD'!D32 -> 218 | AS32: ='[2]1.OVERVIEW CHART DASHBOARD'!E32 -> 84 | AT32: ='[2]1.OVERVIEW CHART DASHBOARD'!F32 -> 134 | AU32: 218 | AW32: 0.3853211009 | AY32: ='[2]1.OVERVIEW CHART DASHBOARD'!J32 -> 0.01785714286 | BA32: ='[2]1.OVERVIEW CHART DASHBOARD'!L32 -> 0.6591928251 | BC32: ='[2]1.OVERVIEW CHART DASHBOARD'!N32 -> 0.2481751825 | BE32: ='[2]1.OVERVIEW CHART DASHBOARD'!P32 -> 0
I33: =MIN(I28:I31) -> 0.2936507937
A34: 4.2.1 TOTAL ARTISANS ENTERED
A35: 4.2.2 TOTAL ARTISAN WORKERS ENTERED | C35: 655 | D35: 207 | E35: 448 | F35: 15 | G35: 463 | I35: 0.9676025918 | K35: ='[3]1.OVERVIEW CHART DASHBOARD'!C35 -> 308 | L35: ='[3]1.OVERVIEW CHART DASHBOARD'!D35 -> 36 | M35: ='[3]1.OVERVIEW CHART DASHBOARD'!E35 -> 272 | N35: ='[3]1.OVERVIEW CHART DASHBOARD'!F35 -> -53 | O35: 219 | Q35: 1.242009132 | S35: ='[3]1.OVERVIEW CHART DASHBOARD'!J35 -> 0 | U35: ='[3]1.OVERVIEW CHART DASHBOARD'!L35 -> 1.903846154 | W35: ='[3]1.OVERVIEW CHART DASHBOARD'!N35 -> 1.496503497 | Y35: ='[3]1.OVERVIEW CHART DASHBOARD'!P35 -> 0 | AA35: ='[4]1.OVERVIEW CHART DASHBOARD'!C35 -> 229 | AB35: ='[4]1.OVERVIEW CHART DASHBOARD'!D35 -> 119 | AC35: ='[4]1.OVERVIEW CHART DASHBOARD'!E35 -> 110 | AD35: ='[4]1.OVERVIEW CHART DASHBOARD'!F35 -> 52 | AE35: 162 | AG35: 0.6790123457 | AI35: ='[4]1.OVERVIEW CHART DASHBOARD'!J35 -> 0 | AK35: ='[4]1.OVERVIEW CHART DASHBOARD'!L35 -> 1.617647059 | AM35: ='[4]1.OVERVIEW CHART DASHBOARD'!N35 -> 0 | AO35: ='[4]1.OVERVIEW CHART DASHBOARD'!P35 -> 0 | AQ35: ='[2]1.OVERVIEW CHART DASHBOARD'!C35 -> 118 | AR35: ='[2]1.OVERVIEW CHART DASHBOARD'!D35 -> 52 | AS35: ='[2]1.OVERVIEW CHART DASHBOARD'!E35 -> 66 | AT35: ='[2]1.OVERVIEW CHART DASHBOARD'!F35 -> 16 | AU35: 82 | AW35: 0.8048780488 | AY35: ='[2]1.OVERVIEW CHART DASHBOARD'!J35 -> 0 | BA35: ='[2]1.OVERVIEW CHART DASHBOARD'!L35 -> 1.5 | BC35: ='[2]1.OVERVIEW CHART DASHBOARD'!N35 -> 0.5 | BE35: ='[2]1.OVERVIEW CHART DASHBOARD'!P35 -> 0
A36: 4.2.2 TOTAL ARTISAN UNEMPLOYED ENTERED | C36: 977 | D36: 307 | E36: 670 | F36: -3 | G36: 667 | I36: 1.004497751 | K36: ='[3]1.OVERVIEW CHART DASHBOARD'!C36 -> 459 | L36: ='[3]1.OVERVIEW CHART DASHBOARD'!D36 -> -15 | M36: ='[3]1.OVERVIEW CHART DASHBOARD'!E36 -> 474 | N36: ='[3]1.OVERVIEW CHART DASHBOARD'!F36 -> -161 | O36: 313 | Q36: 1.514376997 | S36: ='[3]1.OVERVIEW CHART DASHBOARD'!J36 -> 0 | U36: ='[3]1.OVERVIEW CHART DASHBOARD'!L36 -> 2 | W36: ='[3]1.OVERVIEW CHART DASHBOARD'!N36 -> 2.136752137 | Y36: ='[3]1.OVERVIEW CHART DASHBOARD'!P36 -> 0 | AA36: ='[4]1.OVERVIEW CHART DASHBOARD'!C36 -> 342 | AB36: ='[4]1.OVERVIEW CHART DASHBOARD'!D36 -> 252 | AC36: ='[4]1.OVERVIEW CHART DASHBOARD'!E36 -> 90 | AD36: ='[4]1.OVERVIEW CHART DASHBOARD'!F36 -> 144 | AE36: 234 | AG36: 0.3846153846 | AI36: ='[4]1.OVERVIEW CHART DASHBOARD'!J36 -> 0 | AK36: ='[4]1.OVERVIEW CHART DASHBOARD'!L36 -> 1.071428571 | AM36: ='[4]1.OVERVIEW CHART DASHBOARD'!N36 -> 0 | AO36: ='[4]1.OVERVIEW CHART DASHBOARD'!P36 -> 0 | AQ36: ='[2]1.OVERVIEW CHART DASHBOARD'!C36 -> 176 | AR36: ='[2]1.OVERVIEW CHART DASHBOARD'!D36 -> 70 | AS36: ='[2]1.OVERVIEW CHART DASHBOARD'!E36 -> 106 | AT36: ='[2]1.OVERVIEW CHART DASHBOARD'!F36 -> 14 | AU36: 120 | AW36: 0.8833333333 | AY36: ='[2]1.OVERVIEW CHART DASHBOARD'!J36 -> 0 | BA36: ='[2]1.OVERVIEW CHART DASHBOARD'!L36 -> 0.28125 | BC36: ='[2]1.OVERVIEW CHART DASHBOARD'!N36 -> 1.146341463 | BE36: ='[2]1.OVERVIEW CHART DASHBOARD'!P36 -> 0
A37: TOTALS | C37: 1780 | D37: 514 | E37: 1118 | F37: 12 | G37: 1130 | I37: 0.989380531 | K37: ='[3]1.OVERVIEW CHART DASHBOARD'!C37 -> 767 | L37: ='[3]1.OVERVIEW CHART DASHBOARD'!D37 -> 21 | M37: ='[3]1.OVERVIEW CHART DASHBOARD'!E37 -> 746 | N37: ='[3]1.OVERVIEW CHART DASHBOARD'!F37 -> -214 | O37: 532 | Q37: 1.402255639 | S37: ='[3]1.OVERVIEW CHART DASHBOARD'!J37 -> 0 | U37: ='[3]1.OVERVIEW CHART DASHBOARD'!L37 -> 1.958053691 | W37: ='[3]1.OVERVIEW CHART DASHBOARD'!N37 -> 1.893899204 | Y37: ='[3]1.OVERVIEW CHART DASHBOARD'!P37 -> 0 | AA37: ='[4]1.OVERVIEW CHART DASHBOARD'!C37 -> 719 | AB37: ='[4]1.OVERVIEW CHART DASHBOARD'!D37 -> 371 | AC37: ='[4]1.OVERVIEW CHART DASHBOARD'!E37 -> 200 | AD37: ='[4]1.OVERVIEW CHART DASHBOARD'!F37 -> 196 | AE37: 396 | AG37: 0.5050505051 | AI37: ='[4]1.OVERVIEW CHART DASHBOARD'!J37 -> 0 | AK37: ='[4]1.OVERVIEW CHART DASHBOARD'!L37 -> 1.315789474 | AM37: ='[4]1.OVERVIEW CHART DASHBOARD'!N37 -> 0 | AO37: ='[4]1.OVERVIEW CHART DASHBOARD'!P37 -> 0 | AQ37: ='[2]1.OVERVIEW CHART DASHBOARD'!C37 -> 294 | AR37: ='[2]1.OVERVIEW CHART DASHBOARD'!D37 -> 122 | AS37: ='[2]1.OVERVIEW CHART DASHBOARD'!E37 -> 172 | AT37: ='[2]1.OVERVIEW CHART DASHBOARD'!F37 -> 30 | AU37: 202 | AW37: 0.8514851485 | AY37: ='[2]1.OVERVIEW CHART DASHBOARD'!J37 -> 0 | BA37: ='[2]1.OVERVIEW CHART DASHBOARD'!L37 -> 0.8157894737 | BC37: ='[2]1.OVERVIEW CHART DASHBOARD'!N37 -> 0.9649122807 | BE37: ='[2]1.OVERVIEW CHART DASHBOARD'!P37 -> 0
I38: =MIN(I35:I36) -> 0.9676025918
A39: 4.2.1 TOTAL ARTISANS CERTIFICATED
A40: 4.2.2 TOTAL ARTISAN WORKERS CERTIFICATED | C40: 164 | D40: 66 | E40: 98 | F40: 12 | G40: 110 | I40: 0.8909090909 | K40: ='[3]1.OVERVIEW CHART DASHBOARD'!C40 -> 77 | L40: ='[3]1.OVERVIEW CHART DASHBOARD'!D40 -> 37 | M40: ='[3]1.OVERVIEW CHART DASHBOARD'!E40 -> 40 | N40: ='[3]1.OVERVIEW CHART DASHBOARD'!F40 -> 12 | O40: 52 | Q40: 0.7692307692 | S40: ='[3]1.OVERVIEW CHART DASHBOARD'!J40 -> 0 | U40: ='[3]1.OVERVIEW CHART DASHBOARD'!L40 -> 1.017857143 | W40: ='[3]1.OVERVIEW CHART DASHBOARD'!N40 -> 0.7368421053 | Y40: ='[3]1.OVERVIEW CHART DASHBOARD'!P40 -> 0 | AA40: ='[4]1.OVERVIEW CHART DASHBOARD'!C40 -> 57 | AB40: ='[4]1.OVERVIEW CHART DASHBOARD'!D40 -> 13 | AC40: ='[4]1.OVERVIEW CHART DASHBOARD'!E40 -> 44 | AD40: ='[4]1.OVERVIEW CHART DASHBOARD'!F40 -> -6 | AE40: 38 | AG40: 1.157894737 | AI40: ='[4]1.OVERVIEW CHART DASHBOARD'!J40 -> 0 | AK40: ='[4]1.OVERVIEW CHART DASHBOARD'!L40 -> 3.3 | AM40: ='[4]1.OVERVIEW CHART DASHBOARD'!N40 -> 0 | AO40: ='[4]1.OVERVIEW CHART DASHBOARD'!P40 -> 0 | AQ40: ='[2]1.OVERVIEW CHART DASHBOARD'!C40 -> 30 | AR40: ='[2]1.OVERVIEW CHART DASHBOARD'!D40 -> 16 | AS40: ='[2]1.OVERVIEW CHART DASHBOARD'!E40 -> 14 | AT40: ='[2]1.OVERVIEW CHART DASHBOARD'!F40 -> 6 | AU40: 20 | AW40: 0.7 | AY40: ='[2]1.OVERVIEW CHART DASHBOARD'!J40 -> 0 | BA40: ='[2]1.OVERVIEW CHART DASHBOARD'!L40 -> 1.8 | BC40: ='[2]1.OVERVIEW CHART DASHBOARD'!N40 -> 0.2222222222 | BE40: ='[2]1.OVERVIEW CHART DASHBOARD'!P40 -> 0
A41: 4.2.2 ARTISANS UNEMPLOYED CERTIFICATED | C41: 244 | D41: 193 | E41: 51 | F41: -4 | G41: 47 | I41: 1.085106383 | K41: ='[3]1.OVERVIEW CHART DASHBOARD'!C41 -> 114 | L41: ='[3]1.OVERVIEW CHART DASHBOARD'!D41 -> 103 | M41: ='[3]1.OVERVIEW CHART DASHBOARD'!E41 -> 11 | N41: ='[3]1.OVERVIEW CHART DASHBOARD'!F41 -> 11 | O41: 22 | Q41: 0.5 | S41: ='[3]1.OVERVIEW CHART DASHBOARD'!J41 -> NO TARGET | U41: ='[3]1.OVERVIEW CHART DASHBOARD'!L41 -> NO TARGET | W41: ='[3]1.OVERVIEW CHART DASHBOARD'!N41 -> 0.1142857143 | Y41: ='[3]1.OVERVIEW CHART DASHBOARD'!P41 -> 0 | AA41: ='[4]1.OVERVIEW CHART DASHBOARD'!C41 -> 85 | AB41: ='[4]1.OVERVIEW CHART DASHBOARD'!D41 -> 57 | AC41: ='[4]1.OVERVIEW CHART DASHBOARD'!E41 -> 28 | AD41: ='[4]1.OVERVIEW CHART DASHBOARD'!F41 -> -12 | AE41: 16 | AG41: 1.75 | AI41: ='[4]1.OVERVIEW CHART DASHBOARD'!J41 -> NO TARGET | AK41: ='[4]1.OVERVIEW CHART DASHBOARD'!L41 -> NO TARGET | AM41: ='[4]1.OVERVIEW CHART DASHBOARD'!N41 -> 0 | AO41: ='[4]1.OVERVIEW CHART DASHBOARD'!P41 -> 0 | AQ41: ='[2]1.OVERVIEW CHART DASHBOARD'!C41 -> 45 | AR41: ='[2]1.OVERVIEW CHART DASHBOARD'!D41 -> 33 | AS41: ='[2]1.OVERVIEW CHART DASHBOARD'!E41 -> 12 | AT41: ='[2]1.OVERVIEW CHART DASHBOARD'!F41 -> -3 | AU41: 9 | AW41: 1.333333333 | AY41: ='[2]1.OVERVIEW CHART DASHBOARD'!J41 -> 0 | BA41: ='[2]1.OVERVIEW CHART DASHBOARD'!L41 -> NO TARGET | BC41: ='[2]1.OVERVIEW CHART DASHBOARD'!N41 -> 0.3333333333 | BE41: ='[2]1.OVERVIEW CHART DASHBOARD'!P41 -> 0
A42: TOTALS | C42: 784 | D42: 259 | E42: 149 | F42: 8 | G42: 157 | I42: 0.949044586 | K42: ='[3]1.OVERVIEW CHART DASHBOARD'!C42 -> 191 | L42: ='[3]1.OVERVIEW CHART DASHBOARD'!D42 -> 140 | M42: ='[3]1.OVERVIEW CHART DASHBOARD'!E42 -> 51 | N42: ='[3]1.OVERVIEW CHART DASHBOARD'!F42 -> 23 | O42: 74 | Q42: 0.6891891892 | S42: ='[3]1.OVERVIEW CHART DASHBOARD'!J42 -> 0 | U42: ='[3]1.OVERVIEW CHART DASHBOARD'!L42 -> 1.5 | W42: ='[3]1.OVERVIEW CHART DASHBOARD'!N42 -> 0.5 | Y42: ='[3]1.OVERVIEW CHART DASHBOARD'!P42 -> 0 | AA42: ='[4]1.OVERVIEW CHART DASHBOARD'!C42 -> 518 | AB42: ='[4]1.OVERVIEW CHART DASHBOARD'!D42 -> 70 | AC42: ='[4]1.OVERVIEW CHART DASHBOARD'!E42 -> 72 | AD42: ='[4]1.OVERVIEW CHART DASHBOARD'!F42 -> -18 | AE42: 54 | AG42: 1.333333333 | AI42: ='[4]1.OVERVIEW CHART DASHBOARD'!J42 -> 0 | AK42: ='[4]1.OVERVIEW CHART DASHBOARD'!L42 -> 5.4 | AM42: ='[4]1.OVERVIEW CHART DASHBOARD'!N42 -> 0 | AO42: ='[4]1.OVERVIEW CHART DASHBOARD'!P42 -> 0 | AQ42: ='[2]1.OVERVIEW CHART DASHBOARD'!C42 -> 75 | AR42: ='[2]1.OVERVIEW CHART DASHBOARD'!D42 -> 49 | AS42: ='[2]1.OVERVIEW CHART DASHBOARD'!E42 -> 26 | AT42: ='[2]1.OVERVIEW CHART DASHBOARD'!F42 -> 3 | AU42: 29 | AW42: 0.8965517241 | AY42: ='[2]1.OVERVIEW CHART DASHBOARD'!J42 -> 0 | BA42: ='[2]1.OVERVIEW CHART DASHBOARD'!L42 -> 3.285714286 | BC42: ='[2]1.OVERVIEW CHART DASHBOARD'!N42 -> 0.25 | BE42: ='[2]1.OVERVIEW CHART DASHBOARD'!P42 -> 0
I43: =MIN(I40:I41) -> 0.8909090909
A44: 4.2.3 WORKPLACE EXPERIENCE | C44: 452 | D44: 143 | E44: 309 | F44: 143 | G44: 452 | I44: 0.6836283186 | K44: ='[3]1.OVERVIEW CHART DASHBOARD'!C44 -> 212 | L44: ='[3]1.OVERVIEW CHART DASHBOARD'!D44 -> -29 | M44: ='[3]1.OVERVIEW CHART DASHBOARD'!E44 -> 241 | N44: ='[3]1.OVERVIEW CHART DASHBOARD'!F44 -> -29 | O44: 212 | Q44: 1.136792453 | S44: ='[3]1.OVERVIEW CHART DASHBOARD'!J44 -> NO TARGET | U44: ='[3]1.OVERVIEW CHART DASHBOARD'!L44 -> NO TARGET | W44: ='[3]1.OVERVIEW CHART DASHBOARD'!N44 -> 0.9719101124 | Y44: ='[3]1.OVERVIEW CHART DASHBOARD'!P44 -> NO TARGET | AA44: ='[4]1.OVERVIEW CHART DASHBOARD'!C44 -> 158 | AB44: ='[4]1.OVERVIEW CHART DASHBOARD'!D44 -> 145 | AC44: ='[4]1.OVERVIEW CHART DASHBOARD'!E44 -> 13 | AD44: ='[4]1.OVERVIEW CHART DASHBOARD'!F44 -> 145 | AE44: 158 | AG44: 0.08227848101 | AI44: ='[4]1.OVERVIEW CHART DASHBOARD'!J44 -> NO TARGET | AK44: ='[4]1.OVERVIEW CHART DASHBOARD'!L44 -> NO TARGET | AM44: ='[4]1.OVERVIEW CHART DASHBOARD'!N44 -> 0 | AO44: ='[4]1.OVERVIEW CHART DASHBOARD'!P44 -> NO TARGET | AQ44: ='[2]1.OVERVIEW CHART DASHBOARD'!C44 -> 82 | AR44: ='[2]1.OVERVIEW CHART DASHBOARD'!D44 -> 27 | AS44: ='[2]1.OVERVIEW CHART DASHBOARD'!E44 -> 55 | AT44: ='[2]1.OVERVIEW CHART DASHBOARD'!F44 -> 27 | AU44: 82 | AW44: 0.6707317073 | AY44: ='[2]1.OVERVIEW CHART DASHBOARD'!J44 -> NO TARGET | BA44: ='[2]1.OVERVIEW CHART DASHBOARD'!L44 -> NO TARGET | BC44: ='[2]1.OVERVIEW CHART DASHBOARD'!N44 -> 0 | BE44: ='[2]1.OVERVIEW CHART DASHBOARD'!P44 -> NO TARGET
A45: 4.3.2 FET COLLEGE PARTNERSHIPS | C45: 18 | D45: 9 | E45: 9 | F45: 3 | G45: 12 | I45: 0.75 | K45: ='[3]1.OVERVIEW CHART DASHBOARD'!C45 -> 8 | L45: ='[3]1.OVERVIEW CHART DASHBOARD'!D45 -> 1 | M45: ='[3]1.OVERVIEW CHART DASHBOARD'!E45 -> 7 | N45: ='[3]1.OVERVIEW CHART DASHBOARD'!F45 -> -2 | O45: 5 | Q45: 1.4 | S45: ='[3]1.OVERVIEW CHART DASHBOARD'!J45 -> 1 | U45: ='[3]1.OVERVIEW CHART DASHBOARD'!L45 -> 6 | W45: ='[3]1.OVERVIEW CHART DASHBOARD'!N45 -> 0 | Y45: ='[3]1.OVERVIEW CHART DASHBOARD'!P45 -> 0 | AA45: ='[4]1.OVERVIEW CHART DASHBOARD'!C45 -> 6 | AB45: ='[4]1.OVERVIEW CHART DASHBOARD'!D45 -> 5 | AC45: ='[4]1.OVERVIEW CHART DASHBOARD'!E45 -> 1 | AD45: ='[4]1.OVERVIEW CHART DASHBOARD'!F45 -> 3 | AE45: 4 | AG45: 0.25 | AI45: ='[4]1.OVERVIEW CHART DASHBOARD'!J45 -> 1 | AK45: ='[4]1.OVERVIEW CHART DASHBOARD'!L45 -> 0 | AM45: ='[4]1.OVERVIEW CHART DASHBOARD'!N45 -> 0 | AO45: ='[4]1.OVERVIEW CHART DASHBOARD'!P45 -> 0 | AQ45: ='[2]1.OVERVIEW CHART DASHBOARD'!C45 -> 4 | AR45: ='[2]1.OVERVIEW CHART DASHBOARD'!D45 -> 3 | AS45: ='[2]1.OVERVIEW CHART DASHBOARD'!E45 -> 1 | AT45: ='[2]1.OVERVIEW CHART DASHBOARD'!F45 -> 2 | AU45: 3 | AW45: 0.3333333333 | AY45: ='[2]1.OVERVIEW CHART DASHBOARD'!J45 -> 1 | BA45: ='[2]1.OVERVIEW CHART DASHBOARD'!L45 -> 0 | BC45: ='[2]1.OVERVIEW CHART DASHBOARD'!N45 -> 0 | BE45: ='[2]1.OVERVIEW CHART DASHBOARD'!P45 -> 0
A46: 4.4. AET PROGRAMMES ENTERED | C46: 252 | D46: 252 | E46: 0 | F46: 252 | G46: 252 | I46: 0 | K46: ='[3]1.OVERVIEW CHART DASHBOARD'!C46 -> 118 | L46: ='[3]1.OVERVIEW CHART DASHBOARD'!D46 -> 118 | M46: ='[3]1.OVERVIEW CHART DASHBOARD'!E46 -> 0 | N46: ='[3]1.OVERVIEW CHART DASHBOARD'!F46 -> 118 | O46: 118 | Q46: 0 | S46: ='[3]1.OVERVIEW CHART DASHBOARD'!J46 -> NO TARGET | U46: ='[3]1.OVERVIEW CHART DASHBOARD'!L46 -> NO TARGET | W46: ='[3]1.OVERVIEW CHART DASHBOARD'!N46 -> 0 | Y46: ='[3]1.OVERVIEW CHART DASHBOARD'!P46 -> NO TARGET | AA46: ='[4]1.OVERVIEW CHART DASHBOARD'!C46 -> 88 | AB46: ='[4]1.OVERVIEW CHART DASHBOARD'!D46 -> 88 | AC46: ='[4]1.OVERVIEW CHART DASHBOARD'!E46 -> 0 | AD46: ='[4]1.OVERVIEW CHART DASHBOARD'!F46 -> 88 | AE46: 88 | AG46: 0 | AI46: ='[4]1.OVERVIEW CHART DASHBOARD'!J46 -> NO TARGET | AK46: ='[4]1.OVERVIEW CHART DASHBOARD'!L46 -> NO TARGET | AM46: ='[4]1.OVERVIEW CHART DASHBOARD'!N46 -> 0 | AO46: ='[4]1.OVERVIEW CHART DASHBOARD'!P46 -> NO TARGET | AQ46: ='[2]1.OVERVIEW CHART DASHBOARD'!C46 -> 46 | AR46: ='[2]1.OVERVIEW CHART DASHBOARD'!D46 -> 46 | AS46: ='[2]1.OVERVIEW CHART DASHBOARD'!E46 -> 0 | AT46: ='[2]1.OVERVIEW CHART DASHBOARD'!F46 -> 46 | AU46: 46 | AW46: 0 | AY46: ='[2]1.OVERVIEW CHART DASHBOARD'!J46 -> NO TARGET | BA46: ='[2]1.OVERVIEW CHART DASHBOARD'!L46 -> NO TARGET | BC46: ='[2]1.OVERVIEW CHART DASHBOARD'!N46 -> 0 | BE46: ='[2]1.OVERVIEW CHART DASHBOARD'!P46 -> NO TARGET
A47: 4.4. AET PROGRAMMES CERTIFICATED | C47: 126 | D47: 119 | E47: 7 | F47: -7 | G47: 0 | I47: =E47/G47 ->  | K47: ='[3]1.OVERVIEW CHART DASHBOARD'!C47 -> 59 | L47: ='[3]1.OVERVIEW CHART DASHBOARD'!D47 -> 52 | M47: ='[3]1.OVERVIEW CHART DASHBOARD'!E47 -> 7 | N47: ='[3]1.OVERVIEW CHART DASHBOARD'!F47 -> -7 | O47: 0 | S47: ='[3]1.OVERVIEW CHART DASHBOARD'!J47 -> NO TARGET | U47: ='[3]1.OVERVIEW CHART DASHBOARD'!L47 -> NO TARGET | W47: ='[3]1.OVERVIEW CHART DASHBOARD'!N47 -> NO TARGET | Y47: ='[3]1.OVERVIEW CHART DASHBOARD'!P47 -> 0 | AA47: ='[4]1.OVERVIEW CHART DASHBOARD'!C47 -> 44 | AB47: ='[4]1.OVERVIEW CHART DASHBOARD'!D47 -> 44 | AC47: ='[4]1.OVERVIEW CHART DASHBOARD'!E47 -> 0 | AD47: ='[4]1.OVERVIEW CHART DASHBOARD'!F47 -> 0 | AE47: 0 | AI47: ='[4]1.OVERVIEW CHART DASHBOARD'!J47 -> NO TARGET | AK47: ='[4]1.OVERVIEW CHART DASHBOARD'!L47 -> NO TARGET | AM47: ='[4]1.OVERVIEW CHART DASHBOARD'!N47 -> NO TARGET | AO47: ='[4]1.OVERVIEW CHART DASHBOARD'!P47 -> 0 | AQ47: ='[2]1.OVERVIEW CHART DASHBOARD'!C47 -> 23 | AR47: ='[2]1.OVERVIEW CHART DASHBOARD'!D47 -> 23 | AS47: ='[2]1.OVERVIEW CHART DASHBOARD'!E47 -> 0 | AT47: ='[2]1.OVERVIEW CHART DASHBOARD'!F47 -> 0 | AU47: 0 | AY47: ='[2]1.OVERVIEW CHART DASHBOARD'!J47 -> NO TARGET | BA47: ='[2]1.OVERVIEW CHART DASHBOARD'!L47 -> NO TARGET | BC47: ='[2]1.OVERVIEW CHART DASHBOARD'!N47 -> NO TARGET | BE47: ='[2]1.OVERVIEW CHART DASHBOARD'!P47 -> 0
A48: 4.6.1 CO-OPERATIVES | C48: 30 | D48: 13 | E48: 17 | F48: -1 | G48: 16 | I48: 1.0625 | K48: ='[3]1.OVERVIEW CHART DASHBOARD'!C48 -> 14 | L48: ='[3]1.OVERVIEW CHART DASHBOARD'!D48 -> -3 | M48: ='[3]1.OVERVIEW CHART DASHBOARD'!E48 -> 17 | N48: ='[3]1.OVERVIEW CHART DASHBOARD'!F48 -> -17 | O48: 0 | S48: ='[3]1.OVERVIEW CHART DASHBOARD'!J48 -> NO TARGET | U48: ='[3]1.OVERVIEW CHART DASHBOARD'!L48 -> NO TARGET | W48: ='[3]1.OVERVIEW CHART DASHBOARD'!N48 -> NO TARGET | Y48: ='[3]1.OVERVIEW CHART DASHBOARD'!P48 -> 0 | AA48: ='[4]1.OVERVIEW CHART DASHBOARD'!C48 -> 11 | AB48: ='[4]1.OVERVIEW CHART DASHBOARD'!D48 -> 11 | AC48: ='[4]1.OVERVIEW CHART DASHBOARD'!E48 -> 0 | AD48: ='[4]1.OVERVIEW CHART DASHBOARD'!F48 -> 11 | AE48: 11 | AG48: 0 | AI48: ='[4]1.OVERVIEW CHART DASHBOARD'!J48 -> NO TARGET | AK48: ='[4]1.OVERVIEW CHART DASHBOARD'!L48 -> NO TARGET | AM48: ='[4]1.OVERVIEW CHART DASHBOARD'!N48 -> 0 | AO48: ='[4]1.OVERVIEW CHART DASHBOARD'!P48 -> NO TARGET | AQ48: ='[2]1.OVERVIEW CHART DASHBOARD'!C48 -> 5 | AR48: ='[2]1.OVERVIEW CHART DASHBOARD'!D48 -> 5 | AS48: ='[2]1.OVERVIEW CHART DASHBOARD'!E48 -> 0 | AT48: ='[2]1.OVERVIEW CHART DASHBOARD'!F48 -> 5 | AU48: 5 | AW48: 0 | AY48: ='[2]1.OVERVIEW CHART DASHBOARD'!J48 -> NO TARGET | BA48: ='[2]1.OVERVIEW CHART DASHBOARD'!L48 -> NO TARGET | BC48: ='[2]1.OVERVIEW CHART DASHBOARD'!N48 -> 0 | BE48: ='[2]1.OVERVIEW CHART DASHBOARD'!P48 -> NO TARGET
A49: 4.6.2 SMALL BUSINESS SUPPORT | C49: 80 | D49: 60 | E49: 20 | F49: 8 | G49: 28 | I49: 0.7142857143 | K49: ='[3]1.OVERVIEW CHART DASHBOARD'!C49 -> 38 | L49: ='[3]1.OVERVIEW CHART DASHBOARD'!D49 -> 25 | M49: ='[3]1.OVERVIEW CHART DASHBOARD'!E49 -> 13 | N49: ='[3]1.OVERVIEW CHART DASHBOARD'!F49 -> -13 | O49: 0 | S49: ='[3]1.OVERVIEW CHART DASHBOARD'!J49 -> NO TARGET | U49: ='[3]1.OVERVIEW CHART DASHBOARD'!L49 -> NO TARGET | W49: ='[3]1.OVERVIEW CHART DASHBOARD'!N49 -> NO TARGET | Y49: ='[3]1.OVERVIEW CHART DASHBOARD'!P49 -> 0 | AA49: ='[4]1.OVERVIEW CHART DASHBOARD'!C49 -> 28 | AB49: ='[4]1.OVERVIEW CHART DASHBOARD'!D49 -> 21 | AC49: ='[4]1.OVERVIEW CHART DASHBOARD'!E49 -> 7 | AD49: ='[4]1.OVERVIEW CHART DASHBOARD'!F49 -> 7 | AE49: 14 | AG49: 0.5 | AI49: ='[4]1.OVERVIEW CHART DASHBOARD'!J49 -> NO TARGET | AK49: ='[4]1.OVERVIEW CHART DASHBOARD'!L49 -> NO TARGET | AM49: ='[4]1.OVERVIEW CHART DASHBOARD'!N49 -> 0.25 | AO49: ='[4]1.OVERVIEW CHART DASHBOARD'!P49 -> 0 | AQ49: ='[2]1.OVERVIEW CHART DASHBOARD'!C49 -> 14 | AR49: ='[2]1.OVERVIEW CHART DASHBOARD'!D49 -> 14 | AS49: ='[2]1.OVERVIEW CHART DASHBOARD'!E49 -> 0 | AT49: ='[2]1.OVERVIEW CHART DASHBOARD'!F49 -> 14 | AU49: 14 | AW49: 0 | AY49: ='[2]1.OVERVIEW CHART DASHBOARD'!J49 -> NO TARGET | BA49: ='[2]1.OVERVIEW CHART DASHBOARD'!L49 -> NO TARGET | BC49: ='[2]1.OVERVIEW CHART DASHBOARD'!N49 -> 0 | BE49: ='[2]1.OVERVIEW CHART DASHBOARD'!P49 -> NO TARGET
A50: TOTALS | C50: 958 | D50: 596 | E50: 362 | F50: 398 | G50: 760 | I50: 0.4763157895 | K50: ='[3]1.OVERVIEW CHART DASHBOARD'!C50 -> 449 | L50: ='[3]1.OVERVIEW CHART DASHBOARD'!D50 -> 164 | M50: ='[3]1.OVERVIEW CHART DASHBOARD'!E50 -> 285 | N50: ='[3]1.OVERVIEW CHART DASHBOARD'!F50 -> 50 | O50: 335 | Q50: 0.8507462687 | S50: ='[3]1.OVERVIEW CHART DASHBOARD'!J50 -> 23 | U50: ='[3]1.OVERVIEW CHART DASHBOARD'!L50 -> -12.94736842 | W50: ='[3]1.OVERVIEW CHART DASHBOARD'!N50 -> 0.6394316163 | Y50: ='[3]1.OVERVIEW CHART DASHBOARD'!P50 -> 0 | AA50: ='[4]1.OVERVIEW CHART DASHBOARD'!C50 -> 335 | AB50: ='[4]1.OVERVIEW CHART DASHBOARD'!D50 -> 314 | AC50: ='[4]1.OVERVIEW CHART DASHBOARD'!E50 -> 21 | AD50: ='[4]1.OVERVIEW CHART DASHBOARD'!F50 -> 254 | AE50: 275 | AG50: 0.07636363636 | AI50: ='[4]1.OVERVIEW CHART DASHBOARD'!J50 -> 1 | AK50: ='[4]1.OVERVIEW CHART DASHBOARD'!L50 -> 17 | AM50: ='[4]1.OVERVIEW CHART DASHBOARD'!N50 -> 0.01132075472 | AO50: ='[4]1.OVERVIEW CHART DASHBOARD'!P50 -> 0 | AQ50: ='[2]1.OVERVIEW CHART DASHBOARD'!C50 -> 174 | AR50: ='[2]1.OVERVIEW CHART DASHBOARD'!D50 -> 118 | AS50: ='[2]1.OVERVIEW CHART DASHBOARD'!E50 -> 56 | AT50: ='[2]1.OVERVIEW CHART DASHBOARD'!F50 -> 94 | AU50: 150 | AW50: 0.3733333333 | AY50: ='[2]1.OVERVIEW CHART DASHBOARD'!J50 -> 1 | BA50: ='[2]1.OVERVIEW CHART DASHBOARD'!L50 -> 55 | BC50: ='[2]1.OVERVIEW CHART DASHBOARD'!N50 -> 0 | BE50: ='[2]1.OVERVIEW CHART DASHBOARD'!P50 -> 0
A52: 4.6.3 NGO, CBO,NLPE
A53: NGO | C53: 5 | D53: 2 | E53: 3 | F53: =SUM(N53,AD53,AT53) -> 0 | G53: 3 | I53: 1 | K53: ='[3]1.OVERVIEW CHART DASHBOARD'!C53 -> 2 | L53: ='[3]1.OVERVIEW CHART DASHBOARD'!D53 -> 2 | M53: ='[3]1.OVERVIEW CHART DASHBOARD'!E53 -> 0 | N53: ='[3]1.OVERVIEW CHART DASHBOARD'!F53 -> 0 | O53: 0 | S53: ='[3]1.OVERVIEW CHART DASHBOARD'!J53 -> NO TARGET | U53: ='[3]1.OVERVIEW CHART DASHBOARD'!L53 -> NO TARGET | W53: ='[3]1.OVERVIEW CHART DASHBOARD'!N53 -> NO TARGET | Y53: ='[3]1.OVERVIEW CHART DASHBOARD'!P53 -> 0 | AA53: ='[4]1.OVERVIEW CHART DASHBOARD'!C53 -> 2 | AB53: ='[4]1.OVERVIEW CHART DASHBOARD'!D53 -> -1 | AC53: ='[4]1.OVERVIEW CHART DASHBOARD'!E53 -> 3 | AD53: ='[4]1.OVERVIEW CHART DASHBOARD'!F53 -> -1 | AE53: 2 | AG53: 1.5 | AI53: ='[4]1.OVERVIEW CHART DASHBOARD'!J53 -> NO TARGET | AK53: ='[4]1.OVERVIEW CHART DASHBOARD'!L53 -> NO TARGET | AM53: ='[4]1.OVERVIEW CHART DASHBOARD'!N53 -> 1.5 | AO53: ='[4]1.OVERVIEW CHART DASHBOARD'!P53 -> NO TARGET | AQ53: ='[2]1.OVERVIEW CHART DASHBOARD'!C53 -> 1 | AR53: ='[2]1.OVERVIEW CHART DASHBOARD'!D53 -> 1 | AS53: ='[2]1.OVERVIEW CHART DASHBOARD'!E53 -> 0 | AT53: ='[2]1.OVERVIEW CHART DASHBOARD'!F53 -> 1 | AU53: 1 | AW53: 0 | AY53: ='[2]1.OVERVIEW CHART DASHBOARD'!J53 -> NO TARGET | BA53: ='[2]1.OVERVIEW CHART DASHBOARD'!L53 -> NO TARGET | BC53: ='[2]1.OVERVIEW CHART DASHBOARD'!N53 -> 0 | BE53: ='[2]1.OVERVIEW CHART DASHBOARD'!P53 -> NO TARGET
A54: CBC | C54: 5 | D54: 5 | E54: 0 | F54: 3 | G54: 3 | I54: 0 | K54: ='[3]1.OVERVIEW CHART DASHBOARD'!C54 -> 2 | L54: ='[3]1.OVERVIEW CHART DASHBOARD'!D54 -> 2 | M54: ='[3]1.OVERVIEW CHART DASHBOARD'!E54 -> 0 | N54: ='[3]1.OVERVIEW CHART DASHBOARD'!F54 -> 0 | O54: 0 | S54: ='[3]1.OVERVIEW CHART DASHBOARD'!J54 -> NO TARGET | U54: ='[3]1.OVERVIEW CHART DASHBOARD'!L54 -> NO TARGET | W54: ='[3]1.OVERVIEW CHART DASHBOARD'!N54 -> NO TARGET | Y54: ='[3]1.OVERVIEW CHART DASHBOARD'!P54 -> 0 | AA54: ='[4]1.OVERVIEW CHART DASHBOARD'!C54 -> 2 | AB54: ='[4]1.OVERVIEW CHART DASHBOARD'!D54 -> 2 | AC54: ='[4]1.OVERVIEW CHART DASHBOARD'!E54 -> 0 | AD54: ='[4]1.OVERVIEW CHART DASHBOARD'!F54 -> 2 | AE54: 2 | AG54: 0 | AI54: ='[4]1.OVERVIEW CHART DASHBOARD'!J54 -> NO TARGET | AK54: ='[4]1.OVERVIEW CHART DASHBOARD'!L54 -> NO TARGET | AM54: ='[4]1.OVERVIEW CHART DASHBOARD'!N54 -> 0 | AO54: ='[4]1.OVERVIEW CHART DASHBOARD'!P54 -> NO TARGET | AQ54: ='[2]1.OVERVIEW CHART DASHBOARD'!C54 -> 1 | AR54: ='[2]1.OVERVIEW CHART DASHBOARD'!D54 -> 1 | AS54: ='[2]1.OVERVIEW CHART DASHBOARD'!E54 -> 0 | AT54: ='[2]1.OVERVIEW CHART DASHBOARD'!F54 -> 1 | AU54: 1 | AW54: 0 | AY54: ='[2]1.OVERVIEW CHART DASHBOARD'!J54 -> NO TARGET | BA54: ='[2]1.OVERVIEW CHART DASHBOARD'!L54 -> NO TARGET | BC54: ='[2]1.OVERVIEW CHART DASHBOARD'!N54 -> 0 | BE54: ='[2]1.OVERVIEW CHART DASHBOARD'!P54 -> NO TARGET
A55: CBO | C55: 5 | D55: 5 | E55: 0 | F55: 3 | G55: 3 | I55: 0 | K55: ='[3]1.OVERVIEW CHART DASHBOARD'!C55 -> 2 | L55: ='[3]1.OVERVIEW CHART DASHBOARD'!D55 -> 2 | M55: ='[3]1.OVERVIEW CHART DASHBOARD'!E55 -> 0 | N55: ='[3]1.OVERVIEW CHART DASHBOARD'!F55 -> 0 | O55: 0 | S55: ='[3]1.OVERVIEW CHART DASHBOARD'!J55 -> NO TARGET | U55: ='[3]1.OVERVIEW CHART DASHBOARD'!L55 -> NO TARGET | W55: ='[3]1.OVERVIEW CHART DASHBOARD'!N55 -> NO TARGET | Y55: ='[3]1.OVERVIEW CHART DASHBOARD'!P55 -> 0 | AA55: ='[4]1.OVERVIEW CHART DASHBOARD'!C55 -> 2 | AB55: ='[4]1.OVERVIEW CHART DASHBOARD'!D55 -> 2 | AC55: ='[4]1.OVERVIEW CHART DASHBOARD'!E55 -> 0 | AD55: ='[4]1.OVERVIEW CHART DASHBOARD'!F55 -> 2 | AE55: 2 | AG55: 0 | AI55: ='[4]1.OVERVIEW CHART DASHBOARD'!J55 -> NO TARGET | AK55: ='[4]1.OVERVIEW CHART DASHBOARD'!L55 -> NO TARGET | AM55: ='[4]1.OVERVIEW CHART DASHBOARD'!N55 -> 0 | AO55: ='[4]1.OVERVIEW CHART DASHBOARD'!P55 -> NO TARGET | AQ55: ='[2]1.OVERVIEW CHART DASHBOARD'!C55 -> 1 | AR55: ='[2]1.OVERVIEW CHART DASHBOARD'!D55 -> 1 | AS55: ='[2]1.OVERVIEW CHART DASHBOARD'!E55 -> 0 | AT55: ='[2]1.OVERVIEW CHART DASHBOARD'!F55 -> 1 | AU55: 1 | AW55: 0 | AY55: ='[2]1.OVERVIEW CHART DASHBOARD'!J55 -> NO TARGET | BA55: ='[2]1.OVERVIEW CHART DASHBOARD'!L55 -> NO TARGET | BC55: ='[2]1.OVERVIEW CHART DASHBOARD'!N55 -> 0 | BE55: ='[2]1.OVERVIEW CHART DASHBOARD'!P55 -> NO TARGET
A56: NLPE | C56: 5 | D56: 5 | E56: 0 | F56: 3 | G56: 3 | I56: 0 | K56: ='[3]1.OVERVIEW CHART DASHBOARD'!C56 -> 2 | L56: ='[3]1.OVERVIEW CHART DASHBOARD'!D56 -> 2 | M56: ='[3]1.OVERVIEW CHART DASHBOARD'!E56 -> 0 | N56: ='[3]1.OVERVIEW CHART DASHBOARD'!F56 -> 0 | O56: 0 | S56: ='[3]1.OVERVIEW CHART DASHBOARD'!J56 -> NO TARGET | U56: ='[3]1.OVERVIEW CHART DASHBOARD'!L56 -> NO TARGET | W56: ='[3]1.OVERVIEW CHART DASHBOARD'!N56 -> NO TARGET | Y56: ='[3]1.OVERVIEW CHART DASHBOARD'!P56 -> 0 | AA56: ='[4]1.OVERVIEW CHART DASHBOARD'!C56 -> 2 | AB56: ='[4]1.OVERVIEW CHART DASHBOARD'!D56 -> 2 | AC56: ='[4]1.OVERVIEW CHART DASHBOARD'!E56 -> 0 | AD56: ='[4]1.OVERVIEW CHART DASHBOARD'!F56 -> 2 | AE56: 2 | AG56: 0 | AI56: ='[4]1.OVERVIEW CHART DASHBOARD'!J56 -> NO TARGET | AK56: ='[4]1.OVERVIEW CHART DASHBOARD'!L56 -> NO TARGET | AM56: ='[4]1.OVERVIEW CHART DASHBOARD'!N56 -> 0 | AO56: ='[4]1.OVERVIEW CHART DASHBOARD'!P56 -> NO TARGET | AQ56: ='[2]1.OVERVIEW CHART DASHBOARD'!C56 -> 1 | AR56: ='[2]1.OVERVIEW CHART DASHBOARD'!D56 -> 1 | AS56: ='[2]1.OVERVIEW CHART DASHBOARD'!E56 -> 0 | AT56: ='[2]1.OVERVIEW CHART DASHBOARD'!F56 -> 1 | AU56: 1 | AW56: 0 | AY56: ='[2]1.OVERVIEW CHART DASHBOARD'!J56 -> NO TARGET | BA56: ='[2]1.OVERVIEW CHART DASHBOARD'!L56 -> NO TARGET | BC56: ='[2]1.OVERVIEW CHART DASHBOARD'!N56 -> 0 | BE56: ='[2]1.OVERVIEW CHART DASHBOARD'!P56 -> NO TARGET
A57: TOTALS | C57: 20 | D57: 17 | E57: 3 | F57: 9 | G57: 12 | I57: 0.25 | K57: ='[3]1.OVERVIEW CHART DASHBOARD'!C57 -> 8 | L57: ='[3]1.OVERVIEW CHART DASHBOARD'!D57 -> 8 | M57: ='[3]1.OVERVIEW CHART DASHBOARD'!E57 -> 0 | N57: ='[3]1.OVERVIEW CHART DASHBOARD'!F57 -> 0 | O57: 0 | S57: ='[3]1.OVERVIEW CHART DASHBOARD'!J57 -> NO TARGET | U57: ='[3]1.OVERVIEW CHART DASHBOARD'!L57 -> NO TARGET | W57: ='[3]1.OVERVIEW CHART DASHBOARD'!N57 -> NO TARGET | Y57: ='[3]1.OVERVIEW CHART DASHBOARD'!P57 -> 0 | AA57: ='[4]1.OVERVIEW CHART DASHBOARD'!C57 -> 8 | AB57: ='[4]1.OVERVIEW CHART DASHBOARD'!D57 -> 5 | AC57: ='[4]1.OVERVIEW CHART DASHBOARD'!E57 -> 3 | AD57: ='[4]1.OVERVIEW CHART DASHBOARD'!F57 -> 5 | AE57: 8 | AG57: 0.375 | AI57: ='[4]1.OVERVIEW CHART DASHBOARD'!J57 -> NO TARGET | AK57: ='[4]1.OVERVIEW CHART DASHBOARD'!L57 -> NO TARGET | AM57: ='[4]1.OVERVIEW CHART DASHBOARD'!N57 -> 0.375 | AO57: ='[4]1.OVERVIEW CHART DASHBOARD'!P57 -> NO TARGET | AQ57: ='[2]1.OVERVIEW CHART DASHBOARD'!C57 -> 4 | AR57: ='[2]1.OVERVIEW CHART DASHBOARD'!D57 -> 4 | AS57: ='[2]1.OVERVIEW CHART DASHBOARD'!E57 -> 0 | AT57: ='[2]1.OVERVIEW CHART DASHBOARD'!F57 -> 4 | AU57: 4 | AW57: 0 | AY57: ='[2]1.OVERVIEW CHART DASHBOARD'!J57 -> NO TARGET | BA57: ='[2]1.OVERVIEW CHART DASHBOARD'!L57 -> NO TARGET | BC57: ='[2]1.OVERVIEW CHART DASHBOARD'!N57 -> 0.75 | BE57: ='[2]1.OVERVIEW CHART DASHBOARD'!P57 -> NO TARGET
I58: =MIN(I53:I56) -> 0
A59: 4.8 CAREER GUIDANCE | C59: 1003 | D59: -597.3333333 | E59: 1640 | F59: -1600.333333 | G59: 39.66666667 | I59: =E59/G59 -> 41.34453782 | K59: ='[3]1.OVERVIEW CHART DASHBOARD'!C59 -> 470 | L59: ='[3]1.OVERVIEW CHART DASHBOARD'!D59 -> -105 | M59: ='[3]1.OVERVIEW CHART DASHBOARD'!E59 -> 575 | N59: ='[3]1.OVERVIEW CHART DASHBOARD'!F59 -> -575 | O59: 0 | S59: ='[3]1.OVERVIEW CHART DASHBOARD'!J59 -> NO TARGET | U59: ='[3]1.OVERVIEW CHART DASHBOARD'!L59 -> NO TARGET | W59: ='[3]1.OVERVIEW CHART DASHBOARD'!N59 -> 0 | Y59: ='[3]1.OVERVIEW CHART DASHBOARD'!P59 -> 0 | AA59: ='[4]1.OVERVIEW CHART DASHBOARD'!C59 -> 350 | AB59: ='[4]1.OVERVIEW CHART DASHBOARD'!D59 -> -433.3333333 | AC59: ='[4]1.OVERVIEW CHART DASHBOARD'!E59 -> 823 | AD59: ='[4]1.OVERVIEW CHART DASHBOARD'!F59 -> -783.3333333 | AE59: 39.66666667 | AG59: 20.74789916 | AI59: ='[4]1.OVERVIEW CHART DASHBOARD'!J59 -> NO TARGET | AK59: ='[4]1.OVERVIEW CHART DASHBOARD'!L59 -> NO TARGET | AM59: ='[4]1.OVERVIEW CHART DASHBOARD'!N59 -> 0 | AO59: ='[4]1.OVERVIEW CHART DASHBOARD'!P59 -> 0 | AQ59: ='[2]1.OVERVIEW CHART DASHBOARD'!C59 -> 183 | AR59: ='[2]1.OVERVIEW CHART DASHBOARD'!D59 -> -59 | AS59: ='[2]1.OVERVIEW CHART DASHBOARD'!E59 -> 242 | AT59: ='[2]1.OVERVIEW CHART DASHBOARD'!F59 -> -242 | AU59: 0 | AY59: ='[2]1.OVERVIEW CHART DASHBOARD'!J59 -> NO TARGET | BA59: ='[2]1.OVERVIEW CHART DASHBOARD'!L59 -> NO TARGET | BC59: ='[2]1.OVERVIEW CHART DASHBOARD'!N59 -> 0 | BE59: ='[2]1.OVERVIEW CHART DASHBOARD'!P59 -> 0
C61: TARGET | D61: YTD VARIANCE | E61: YTD ACTUAL | F61: YTD BACKLOG
A62: TOTALS PROGRAMME | C62: =SUM(C57,C50,C42,C37,C32,C25,C18,C12) -> 15485 | D62: =SUM(D57,D50,D42,D37,D32,D25,D18,D12) -> 4585 | E62: =SUM(E57,E50,E42,E37,E32,E25,E18,E12) -> 10376 | F62: =SUM(F57,F50,F42,F37,F32,F25,F18,F12) -> 12 | G62: =SUM(E62,F62) -> 10388 | I62: =E62/G62 -> 0.9988448209 | K62: =SUM(K57,K50,K42,K37,K32,K25,K18,K12) -> 7026 | L62: =SUM(L57,L50,L42,L37,L32,L25,L18,L12) -> 149 | M62: =SUM(M57,M50,M42,M37,M32,M25,M18,M12) -> 6877 | N62: =SUM(N57,N50,N42,N37,N32,N25,N18,N12) -> -1996 | O62: =SUM(M62,N62) -> 4881 | P62: =SUM(M62,N62) -> 4881 | Q62: 1.408932596 | AA62: =SUM(AA57,AA50,AA42,AA37,AA32,AA25,AA18,AA12) -> 5756 | AB62: =SUM(AB57,AB50,AB42,AB37,AB32,AB25,AB18,AB12) -> 2573 | AC62: =SUM(AC57,AC50,AC42,AC37,AC32,AC25,AC18,AC12) -> 2659 | AD62: =SUM(AD57,AD50,AD42,AD37,AD32,AD25,AD18,AD12) -> 954 | AE62: =SUM(AC62,AD62) -> 3613 | AG62: =AC62/AE62 -> 0.7359535012 | AQ62: =SUM(AQ57,AQ50,AQ42,AQ37,AQ32,AQ25,AQ18,AQ12) -> 2703 | AR62: =SUM(AR57,AR50,AR42,AR37,AR32,AR25,AR18,AR12) -> 1863 | AS62: =SUM(AS57,AS50,AS42,AS37,AS32,AS25,AS18,AS12) -> 840 | AT62: =SUM(AT57,AT50,AT42,AT37,AT32,AT25,AT18,AT12) -> 1054 | AU62: =SUM(AS62,AT62) -> 1894 | AW62: 0.4435058078

Sheet 1.OVERVIEW DASHBOARD (hidden)
A2: REGIONS PERFORMANCE Q -PROGRESS DASHBOARD
C4: CHIETA SQMR OVERVIEW | I4: REGION OVERVIEW %
C6: REGION OVERVIEW PERFORMANCE | I6: Q1 | K6: Q2 | M6: Q3 | O6: Q4
C7: ANNUAL TARGET | D7: ='[6]2.Q-PROGRESS DASHBOARD'!$D$7 -> YTD VARIANCE | E7: YTD ACTUAL | G7: YTD PERFORMANCE | I7: TARGET % | K7: TARGET % | M7: TARGET % | O7: TARGET %
A8: 4.2.1 TOTAL WORKERS ENTERED | I8: =I6 -> Q1 | K8: =K6 -> Q2 | M8: =M6 -> Q3 | O8: =O6 -> Q4
A9: ='2.REGIONS DASHBOARD'!K4 -> GAUTENG
A10: ='2.REGIONS DASHBOARD'!AA4 -> KZN
A11: ='2.REGIONS DASHBOARD'!AQ4 -> WESTERN CAPE
A12: TOTAL
A14: 4.2.1 TOTAL WORKERS CERTIFICATED
A15: GAUTENG
A16: KZN
A17: WESTERN CAPE
A19: 4.2.1 TOTAL UNEMPLOYED ENTERED
A20: GAUTENG
A21: KZN
A22: WESTERN CAPE
A24: 4.2.1 TOTAL UNEMPLOYED CERTIFICATED
A25: GAUTENG
A26: KZN
A27: WESTERN CAPE
A29: 4.2.1 TOTAL ARTISANS ENTERED
A30: GAUTENG
A31: KZN
A32: WESTERN CAPE
A34: 4.2.1 TOTAL ARTISANS CRTIFICATED
A35: GAUTENG
A36: KZN
A37: WESTERN CAPE
A39: 4.2.3 WORKPLACE EXPERIENCE
A40: GAUTENG
A41: KZN
A42: WESTERN CAPE
A44: 4.3.2 FET COLLEGE PARTNERSHIPS
A45: GAUTENG
A46: KZN
A47: WESTERN CAPE
A49: 4.4. AET PROGRAMMES ENTERED
A50: GAUTENG
A51: KZN
A52: WESTERN CAPE
A54: 4.4. AET PROGRAMMES CERTIFICATED
A55: GAUTENG
A56: KZN
A57: WESTERN CAPE
A59: 4.6.1 CO-OPERATIVES
A60: GAUTENG
A61: KZN
A62: WESTERN CAPE
A64: 4.6.2 SMALL BUSINESS SUPPORT
A65: GAUTENG
A66: KZN
A67: WESTERN CAPE
A69: 4.6.3 NGO, CBO,NLPE
A70: GAUTENG
A71: KZN
A72: WESTERN CAPE
A74: 4.8 CAREER GUIDANCE
A75: GAUTENG
A76: KZN
A77: WESTERN CAPE
F80: =SUM(F75,F70,F65,F60,F55,F50,F45,F35,F30,F25,F20,F15,F9) -> 0
F81: =SUM(F76,F71,F66,F61,F56,F51,F46,F36,F31,F26,F21,F16,F10) -> 0
F82: =SUM(F77,F72,F67,F62,F57,F52,F47,F37,F32,F27,F22,F17,F11) -> 0
